Workbook

Sheet INGRESO DE DATOS
B13: Nombre del Asegurado Titular | D13: NOMBRE COMPLETO
B15: Número de adultos en la póliza | D15: 2 | F15: Número de niños en la póliza | J15: 2
B17: Edad del Asegurado Titular | D17: 32 | F17: Edad del/la cónyuge | J17: 46
D20: Variante con coaseguro fuera del país de residencia | H20: FALSE | J20: FALSE
B25: 1 | D25: 1

Sheet Global Elite
A16: GLOBAL ELITE HEALTH PLAN | D16: Nombre del Asegurado Titular | F16: =+'INGRESO DE DATOS'!$D$13 -> NOMBRE COMPLETO
D18: Número de adultos en la póliza | F18: =+'INGRESO DE DATOS'!$D$15 -> 2 | I18: Edad del Asegurado Titular | J18: =+'INGRESO DE DATOS'!$D$17 -> 32
D20: Número de niños en la póliza | F20: =+'INGRESO DE DATOS'!$J$15 -> 2 | I20: Edad del/la conyuge | J20: =+'INGRESO DE DATOS'!$J$17 -> 46
D22: Número de niños menores de 10 años | F22: =+'INGRESO DE DATOS'!$D$25 -> 1 | I22: Fecha de la cotización: | J22: =NOW() -> 2023-07-27T10:54:55.150
H23: FALSE
E24: DEDUCTIBLES | G24: PLAN 1 | H24: PLAN 2 | I24: PLAN 3 | J24: PLAN 4 | K24: PLAN 5
E25: En el país de residencia | G25: 250 | H25: 2000 | I25: 3500 | J25: 5000 | K25: 10000
E26: Fuera del país de residencia | G26: 5000 | H26: 2000 | I26: 3500 | J26: 5000 | K26: 10000
E28: Tarifas anuales
E29: Prima para Asegurado Titular | G29: =(VLOOKUP($J$18,Tablas!$A$6:$G$72,3,TRUE)) -> 5981.92 | H29: =(VLOOKUP($J$18,Tablas!$A$6:$G$72,4,TRUE)) -> 5243.28 | I29: =(VLOOKUP($J$18,Tablas!$A$6:$G$72,5,TRUE)) -> 4349.52 | J29: =(VLOOKUP($J$18,Tablas!$A$6:$G$72,6,TRUE)) -> 3771.04 | K29: =(VLOOKUP($J$18,Tablas!$A$6:$G$72,7,TRUE)) -> 2925.44
E30: Prima para conyuge | G30: =(IF($F$18=1,0,(VLOOKUP($J$20,Tablas!$A$6:$G$72,3,TRUE)))) -> 8372 | H30: =(IF($F$18=1,0,(VLOOKUP($J$20,Tablas!$A$6:$G$72,4,TRUE)))) -> 7339.36 | I30: =(IF($F$18=1,0,(VLOOKUP($J$20,Tablas!$A$6:$G$72,5,TRUE)))) -> 6009.36 | J30: =(IF($F$18=1,0,(VLOOKUP($J$20,Tablas!$A$6:$G$72,6,TRUE)))) -> 5210.8 | K30: =(IF($F$18=1,0,(VLOOKUP($J$20,Tablas!$A$6:$G$72,7,TRUE)))) -> 4041.52
E31: Prima para hijo (s) | G31: =(IF($F$18=1, (IF($F$20=0, 0, (IF($F$22>$F$20, (VLOOKUP($F$20,Tablas!$A$73:$G$75,3,TRUE)), (IF($F$20>4,(IF($F$22=0, (VLOOKUP(3,Tablas!$A$73:$G$75,3,TRUE)), (IF($F$22=1, (VLOOKUP(3,Tablas!$A$73:$G$75,3,TRUE)), (IF($F$22=2, (VLOOKUP(3,Tablas!$A$73:$G$75,3,TRUE)), (VLOOKUP(3,Tablas!$A$73:$G$75,3,TRUE)))))))), (IF($F$20=4,(IF(4-$F$22=0,(VLOOKUP(2,Tablas!$A$73:$G$75,3,TRUE)), (IF(4-$F$22=1,(VLOOKUP(2,Tablas!$A$73:$G$75,3,TRUE)), (IF(4-$F$22=2, (VLOOKUP(2,Tablas!$A$73:$G$75,3,TRUE)), (VLOOKUP(3,Tablas!$A$73:$G$75,3,TRUE)))))))), (IF($F$20=3,(IF(3-$F$22=0,(VLOOKUP(1,Tablas!$A$73:$G$75,3,TRUE)), (IF(3-$F$22=1,(VLOOKUP(1,Tablas!$A$73:$G$75,3,TRUE)), (IF(3-$F$22=2, (VLOOKUP(2,Tablas!$A$73:$G$75,3,TRUE)), (VLOOKUP(3,Tablas!$A$73:$G$75,3,TRUE)))))))), (IF($F$20=2,(IF(2-$F$22=0, 0, (IF(2-$F$22=1,(VLOOKUP(1,Tablas!$A$73:$G$75,3,TRUE)), (IF(2-$F$22=2, (VLOOKUP(2,Tablas!$A$73:$G$75,3,TRUE)), 0)))))), (IF($F$20=1,(IF(1-$F$22=0, 0, (IF(1-$F$22=1,(VLOOKUP(1,Tablas!$A$73:$G$75,3,TRUE)),0)))),0)))))))))))))), (IF($F$20=0, 0, (IF($F$22>$F$20, (VLOOKUP($F$20,Tablas!$A$73:$G$75,3,TRUE)), (IF($F$20=4,(IF(4-$F$22=0, 0, (IF(4-$F$22=1, (VLOOKUP(1,Tablas!$A$73:$G$75,3,TRUE)), (IF(4-$F$22=2, (VLOOKUP(2,Tablas!$A$73:$G$75,3,TRUE)), (IF(4-$F$22=3, (VLOOKUP(3,Tablas!$A$73:$G$75,3,TRUE)), (IF(4-$F$22=4, (VLOOKUP(3,Tablas!$A$73:$G$75,3,TRUE)), 0)))))))))), (IF($F$20=5,(IF(5-$F$22=0, (VLOOKUP(1,Tablas!$A$73:$G$75,3,TRUE)), (IF(5-$F$22=1, (VLOOKUP(1,Tablas!$A$73:$G$75,3,TRUE)), (IF(5-$F$22=2, (VLOOKUP(2,Tablas!$A$73:$G$75,3,TRUE)), (IF(5-$F$22=3, (VLOOKUP(3,Tablas!$A$73:$G$75,3,TRUE)), (IF(5-$F$22=4, (VLOOKUP(3,Tablas!$A$73:$G$75,3,TRUE)), (VLOOKUP(3,Tablas!$A$73:$G$75,3,TRUE)))))))))))), (IF($F$20=6,(IF(6-$F$22=0, (VLOOKUP(2,Tablas!$A$73:$G$75,3,TRUE)), (IF(6-$F$22=1, (VLOOKUP(2,Tablas!$A$73:$G$75,3,TRUE)), (IF(6-$F$22=2, (VLOOKUP(2,Tablas!$A$73:$G$75,3,TRUE)), (IF(6-$F$22=3, (VLOOKUP(3,Tablas!$A$73:$G$75,3,TRUE)), (IF(6-$F$22=4, (VLOOKUP(3,Tablas!$A$73:$G$75,3,TRUE)), (VLOOKUP(3,Tablas!$A$73:$G$75,3,TRUE)))))))))))), (IF($F$20>6,(IF(7-$F$22=0, (VLOOKUP(3,Tablas!$A$73:$G$75,3,TRUE)), (IF(7-$F$22=1, (VLOOKUP(3,Tablas!$A$73:$B$75,3,TRUE)), (IF(7-$F$22=2, (VLOOKUP(3,Tablas!$A$73:$G$75,3,TRUE)), (IF(7-$F$22=3, (VLOOKUP(3,Tablas!$A$73:$G$75,3,TRUE)), (IF(7-$F$22=4, (VLOOKUP(3,Tablas!$A$73:$G$75,3,TRUE)), (VLOOKUP(3,Tablas!$A$73:$G$75,3,TRUE)))))))))))), (IF($F$20=3,(IF(3-$F$22=0,0, (IF(3-$F$22=1,(VLOOKUP(1,Tablas!$A$73:$G$75,3,TRUE)), (IF(3-$F$22=2, (VLOOKUP(2,Tablas!$A$73:$G$75,3,TRUE)), (VLOOKUP(3,Tablas!$A$73:$G$75,3,TRUE)))))))), (IF($F$20=2,(IF(2-$F$22=0, 0, (IF(2-$F$22=1,(VLOOKUP(1,Tablas!$A$73:$G$75,3,TRUE)), (IF(2-$F$22=2, (VLOOKUP(2,Tablas!$A$73:$G$75,3,TRUE)), 0)))))), (IF($F$20=1,(IF(1-$F$22=0, 0, (IF(1-$F$22=1,(VLOOKUP(1,Tablas!$A$73:$G$75,3,TRUE)),0)))),0)))))))))))))))))))) -> 2125.76 | H31: =(IF($F$18=1, (IF($F$20=0, 0, (IF($F$22>$F$20, (VLOOKUP($F$20,Tablas!$A$73:$G$75,4,TRUE)), (IF($F$20>4,(IF($F$22=0, (VLOOKUP(3,Tablas!$A$73:$G$75,4,TRUE)), (IF($F$22=1, (VLOOKUP(3,Tablas!$A$73:$G$75,4,TRUE)), (IF($F$22=2, (VLOOKUP(3,Tablas!$A$73:$G$75,4,TRUE)), (VLOOKUP(3,Tablas!$A$73:$G$75,4,TRUE)))))))), (IF($F$20=4,(IF(4-$F$22=0,(VLOOKUP(2,Tablas!$A$73:$G$75,4,TRUE)), (IF(4-$F$22=1,(VLOOKUP(2,Tablas!$A$73:$G$75,4,TRUE)), (IF(4-$F$22=2, (VLOOKUP(2,Tablas!$A$73:$G$75,4,TRUE)), (VLOOKUP(3,Tablas!$A$73:$G$75,4,TRUE)))))))), (IF($F$20=3,(IF(3-$F$22=0,(VLOOKUP(1,Tablas!$A$73:$G$75,4,TRUE)), (IF(3-$F$22=1,(VLOOKUP(1,Tablas!$A$73:$G$75,4,TRUE)), (IF(3-$F$22=2, (VLOOKUP(2,Tablas!$A$73:$G$75,4,TRUE)), (VLOOKUP(3,Tablas!$A$73:$G$75,4,TRUE)))))))), (IF($F$20=2,(IF(2-$F$22=0, 0, (IF(2-$F$22=1,(VLOOKUP(1,Tablas!$A$73:$G$75,4,TRUE)), (IF(2-$F$22=2, (VLOOKUP(2,Tablas!$A$73:$G$75,4,TRUE)), 0)))))), (IF($F$20=1,(IF(1-$F$22=0, 0, (IF(1-$F$22=1,(VLOOKUP(1,Tablas!$A$73:$G$75,4,TRUE)),0)))),0)))))))))))))), (IF($F$20=0, 0, (IF($F$22>$F$20, (VLOOKUP($F$20,Tablas!$A$73:$G$75,4,TRUE)), (IF($F$20=4,(IF(4-$F$22=0, 0, (IF(4-$F$22=1, (VLOOKUP(1,Tablas!$A$73:$G$75,4,TRUE)), (IF(4-$F$22=2, (VLOOKUP(2,Tablas!$A$73:$G$75,4,TRUE)), (IF(4-$F$22=3, (VLOOKUP(3,Tablas!$A$73:$G$75,4,TRUE)), (IF(4-$F$22=4, (VLOOKUP(3,Tablas!$A$73:$G$75,4,TRUE)), 0)))))))))), (IF($F$20=5,(IF(5-$F$22=0, (VLOOKUP(1,Tablas!$A$73:$G$75,4,TRUE)), (IF(5-$F$22=1, (VLOOKUP(1,Tablas!$A$73:$G$75,4,TRUE)), (IF(5-$F$22=2, (VLOOKUP(2,Tablas!$A$73:$G$75,4,TRUE)), (IF(5-$F$22=3, (VLOOKUP(3,Tablas!$A$73:$G$75,4,TRUE)), (IF(5-$F$22=4, (VLOOKUP(3,Tablas!$A$73:$G$75,4,TRUE)), (VLOOKUP(3,Tablas!$A$73:$G$75,4,TRUE)))))))))))), (IF($F$20=6,(IF(6-$F$22=0, (VLOOKUP(2,Tablas!$A$73:$G$75,4,TRUE)), (IF(6-$F$22=1, (VLOOKUP(2,Tablas!$A$73:$G$75,4,TRUE)), (IF(6-$F$22=2, (VLOOKUP(2,Tablas!$A$73:$G$75,4,TRUE)), (IF(6-$F$22=3, (VLOOKUP(3,Tablas!$A$73:$G$75,4,TRUE)), (IF(6-$F$22=4, (VLOOKUP(3,Tablas!$A$73:$G$75,4,TRUE)), (VLOOKUP(3,Tablas!$A$73:$G$75,4,TRUE)))))))))))), (IF($F$20>6,(IF(7-$F$22=0, (VLOOKUP(3,Tablas!$A$73:$G$75,4,TRUE)), (IF(7-$F$22=1, (VLOOKUP(3,Tablas!$A$73:$B$75,4,TRUE)), (IF(7-$F$22=2, (VLOOKUP(3,Tablas!$A$73:$G$75,4,TRUE)), (IF(7-$F$22=3, (VLOOKUP(3,Tablas!$A$73:$G$75,4,TRUE)), (IF(7-$F$22=4, (VLOOKUP(3,Tablas!$A$73:$G$75,4,TRUE)), (VLOOKUP(3,Tablas!$A$73:$G$75,4,TRUE)))))))))))), (IF($F$20=3,(IF(3-$F$22=0,0, (IF(3-$F$22=1,(VLOOKUP(1,Tablas!$A$73:$G$75,4,TRUE)), (IF(3-$F$22=2, (VLOOKUP(2,Tablas!$A$73:$G$75,4,TRUE)), (VLOOKUP(3,Tablas!$A$73:$G$75,4,TRUE)))))))), (IF($F$20=2,(IF(2-$F$22=0, 0, (IF(2-$F$22=1,(VLOOKUP(1,Tablas!$A$73:$G$75,4,TRUE)), (IF(2-$F$22=2, (VLOOKUP(2,Tablas!$A$73:$G$75,4,TRUE)), 0)))))), (IF($F$20=1,(IF(1-$F$22=0, 0, (IF(1-$F$22=1,(VLOOKUP(1,Tablas!$A$73:$G$75,4,TRUE)),0)))),0)))))))))))))))))))) -> 1863.68 | I31: =(IF($F$18=1, (IF($F$20=0, 0, (IF($F$22>$F$20, (VLOOKUP($F$20,Tablas!$A$73:$G$75,5,TRUE)), (IF($F$20>4,(IF($F$22=0, (VLOOKUP(3,Tablas!$A$73:$G$75,5,TRUE)), (IF($F$22=1, (VLOOKUP(3,Tablas!$A$73:$G$75,5,TRUE)), (IF($F$22=2, (VLOOKUP(3,Tablas!$A$73:$G$75,5,TRUE)), (VLOOKUP(3,Tablas!$A$73:$G$75,5,TRUE)))))))), (IF($F$20=4,(IF(4-$F$22=0,(VLOOKUP(2,Tablas!$A$73:$G$75,5,TRUE)), (IF(4-$F$22=1,(VLOOKUP(2,Tablas!$A$73:$G$75,5,TRUE)), (IF(4-$F$22=2, (VLOOKUP(2,Tablas!$A$73:$G$75,5,TRUE)), (VLOOKUP(3,Tablas!$A$73:$G$75,5,TRUE)))))))), (IF($F$20=3,(IF(3-$F$22=0,(VLOOKUP(1,Tablas!$A$73:$G$75,5,TRUE)), (IF(3-$F$22=1,(VLOOKUP(1,Tablas!$A$73:$G$75,5,TRUE)), (IF(3-$F$22=2, (VLOOKUP(2,Tablas!$A$73:$G$75,5,TRUE)), (VLOOKUP(3,Tablas!$A$73:$G$75,5,TRUE)))))))), (IF($F$20=2,(IF(2-$F$22=0, 0, (IF(2-$F$22=1,(VLOOKUP(1,Tablas!$A$73:$G$75,5,TRUE)), (IF(2-$F$22=2, (VLOOKUP(2,Tablas!$A$73:$G$75,5,TRUE)), 0)))))), (IF($F$20=1,(IF(1-$F$22=0, 0, (IF(1-$F$22=1,(VLOOKUP(1,Tablas!$A$73:$G$75,5,TRUE)),0)))),0)))))))))))))), (IF($F$20=0, 0, (IF($F$22>$F$20, (VLOOKUP($F$20,Tablas!$A$73:$G$75,5,TRUE)), (IF($F$20=4,(IF(4-$F$22=0, 0, (IF(4-$F$22=1, (VLOOKUP(1,Tablas!$A$73:$G$75,5,TRUE)), (IF(4-$F$22=2, (VLOOKUP(2,Tablas!$A$73:$G$75,5,TRUE)), (IF(4-$F$22=3, (VLOOKUP(3,Tablas!$A$73:$G$75,5,TRUE)), (IF(4-$F$22=4, (VLOOKUP(3,Tablas!$A$73:$G$75,5,TRUE)), 0)))))))))), (IF($F$20=5,(IF(5-$F$22=0, (VLOOKUP(1,Tablas!$A$73:$G$75,5,TRUE)), (IF(5-$F$22=1, (VLOOKUP(1,Tablas!$A$73:$G$75,5,TRUE)), (IF(5-$F$22=2, (VLOOKUP(2,Tablas!$A$73:$G$75,5,TRUE)), (IF(5-$F$22=3, (VLOOKUP(3,Tablas!$A$73:$G$75,5,TRUE)), (IF(5-$F$22=4, (VLOOKUP(3,Tablas!$A$73:$G$75,5,TRUE)), (VLOOKUP(3,Tablas!$A$73:$G$75,5,TRUE)))))))))))), (IF($F$20=6,(IF(6-$F$22=0, (VLOOKUP(2,Tablas!$A$73:$G$75,5,TRUE)), (IF(6-$F$22=1, (VLOOKUP(2,Tablas!$A$73:$G$75,5,TRUE)), (IF(6-$F$22=2, (VLOOKUP(2,Tablas!$A$73:$G$75,5,TRUE)), (IF(6-$F$22=3, (VLOOKUP(3,Tablas!$A$73:$G$75,5,TRUE)), (IF(6-$F$22=4, (VLOOKUP(3,Tablas!$A$73:$G$75,5,TRUE)), (VLOOKUP(3,Tablas!$A$73:$G$75,5,TRUE)))))))))))), (IF($F$20>6,(IF(7-$F$22=0, (VLOOKUP(3,Tablas!$A$73:$G$75,5,TRUE)), (IF(7-$F$22=1, (VLOOKUP(3,Tablas!$A$73:$B$75,4,TRUE)), (IF(7-$F$22=2, (VLOOKUP(3,Tablas!$A$73:$G$75,5,TRUE)), (IF(7-$F$22=3, (VLOOKUP(3,Tablas!$A$73:$G$75,5,TRUE)), (IF(7-$F$22=4, (VLOOKUP(3,Tablas!$A$73:$G$75,5,TRUE)), (VLOOKUP(3,Tablas!$A$73:$G$75,5,TRUE)))))))))))), (IF($F$20=3,(IF(3-$F$22=0,0, (IF(3-$F$22=1,(VLOOKUP(1,Tablas!$A$73:$G$75,5,TRUE)), (IF(3-$F$22=2, (VLOOKUP(2,Tablas!$A$73:$G$75,5,TRUE)), (VLOOKUP(3,Tablas!$A$73:$G$75,5,TRUE)))))))), (IF($F$20=2,(IF(2-$F$22=0, 0, (IF(2-$F$22=1,(VLOOKUP(1,Tablas!$A$73:$G$75,5,TRUE)), (IF(2-$F$22=2, (VLOOKUP(2,Tablas!$A$73:$G$75,5,TRUE)), 0)))))), (IF($F$20=1,(IF(1-$F$22=0, 0, (IF(1-$F$22=1,(VLOOKUP(1,Tablas!$A$73:$G$75,5,TRUE)),0)))),0)))))))))))))))))))) -> 1578.64 | J31: =(IF($F$18=1, (IF($F$20=0, 0, (IF($F$22>$F$20, (VLOOKUP($F$20,Tablas!$A$73:$G$75,6,TRUE)), (IF($F$20>4,(IF($F$22=0, (VLOOKUP(3,Tablas!$A$73:$G$75,6,TRUE)), (IF($F$22=1, (VLOOKUP(3,Tablas!$A$73:$G$75,6,TRUE)), (IF($F$22=2, (VLOOKUP(3,Tablas!$A$73:$G$75,6,TRUE)), (VLOOKUP(3,Tablas!$A$73:$G$75,6,TRUE)))))))), (IF($F$20=4,(IF(4-$F$22=0,(VLOOKUP(2,Tablas!$A$73:$G$75,6,TRUE)), (IF(4-$F$22=1,(VLOOKUP(2,Tablas!$A$73:$G$75,6,TRUE)), (IF(4-$F$22=2, (VLOOKUP(2,Tablas!$A$73:$G$75,6,TRUE)), (VLOOKUP(3,Tablas!$A$73:$G$75,6,TRUE)))))))), (IF($F$20=3,(IF(3-$F$22=0,(VLOOKUP(1,Tablas!$A$73:$G$75,6,TRUE)), (IF(3-$F$22=1,(VLOOKUP(1,Tablas!$A$73:$G$75,6,TRUE)), (IF(3-$F$22=2, (VLOOKUP(2,Tablas!$A$73:$G$75,6,TRUE)), (VLOOKUP(3,Tablas!$A$73:$G$75,6,TRUE)))))))), (IF($F$20=2,(IF(2-$F$22=0, 0, (IF(2-$F$22=1,(VLOOKUP(1,Tablas!$A$73:$G$75,6,TRUE)), (IF(2-$F$22=2, (VLOOKUP(2,Tablas!$A$73:$G$75,6,TRUE)), 0)))))), (IF($F$20=1,(IF(1-$F$22=0, 0, (IF(1-$F$22=1,(VLOOKUP(1,Tablas!$A$73:$G$75,6,TRUE)),0)))),0)))))))))))))), (IF($F$20=0, 0, (IF($F$22>$F$20, (VLOOKUP($F$20,Tablas!$A$73:$G$75,6,TRUE)), (IF($F$20=4,(IF(4-$F$22=0, 0, (IF(4-$F$22=1, (VLOOKUP(1,Tablas!$A$73:$G$75,6,TRUE)), (IF(4-$F$22=2, (VLOOKUP(2,Tablas!$A$73:$G$75,6,TRUE)), (IF(4-$F$22=3, (VLOOKUP(3,Tablas!$A$73:$G$75,6,TRUE)), (IF(4-$F$22=4, (VLOOKUP(3,Tablas!$A$73:$G$75,6,TRUE)), 0)))))))))), (IF($F$20=5,(IF(5-$F$22=0, (VLOOKUP(1,Tablas!$A$73:$G$75,6,TRUE)), (IF(5-$F$22=1, (VLOOKUP(1,Tablas!$A$73:$G$75,6,TRUE)), (IF(5-$F$22=2, (VLOOKUP(2,Tablas!$A$73:$G$75,6,TRUE)), (IF(5-$F$22=3, (VLOOKUP(3,Tablas!$A$73:$G$75,6,TRUE)), (IF(5-$F$22=4, (VLOOKUP(3,Tablas!$A$73:$G$75,6,TRUE)), (VLOOKUP(3,Tablas!$A$73:$G$75,6,TRUE)))))))))))), (IF($F$20=6,(IF(6-$F$22=0, (VLOOKUP(2,Tablas!$A$73:$G$75,6,TRUE)), (IF(6-$F$22=1, (VLOOKUP(2,Tablas!$A$73:$G$75,6,TRUE)), (IF(6-$F$22=2, (VLOOKUP(2,Tablas!$A$73:$G$75,6,TRUE)), (IF(6-$F$22=3, (VLOOKUP(3,Tablas!$A$73:$G$75,6,TRUE)), (IF(6-$F$22=4, (VLOOKUP(3,Tablas!$A$73:$G$75,6,TRUE)), (VLOOKUP(3,Tablas!$A$73:$G$75,6,TRUE)))))))))))), (IF($F$20>6,(IF(7-$F$22=0, (VLOOKUP(3,Tablas!$A$73:$G$75,6,TRUE)), (IF(7-$F$22=1, (VLOOKUP(3,Tablas!$A$73:$B$75,3,TRUE)), (IF(7-$F$22=2, (VLOOKUP(3,Tablas!$A$73:$G$75,6,TRUE)), (IF(7-$F$22=3, (VLOOKUP(3,Tablas!$A$73:$G$75,6,TRUE)), (IF(7-$F$22=4, (VLOOKUP(3,Tablas!$A$73:$G$75,6,TRUE)), (VLOOKUP(3,Tablas!$A$73:$G$75,6,TRUE)))))))))))), (IF($F$20=3,(IF(3-$F$22=0,0, (IF(3-$F$22=1,(VLOOKUP(1,Tablas!$A$73:$G$75,6,TRUE)), (IF(3-$F$22=2, (VLOOKUP(2,Tablas!$A$73:$G$75,6,TRUE)), (VLOOKUP(3,Tablas!$A$73:$G$75,6,TRUE)))))))), (IF($F$20=2,(IF(2-$F$22=0, 0, (IF(2-$F$22=1,(VLOOKUP(1,Tablas!$A$73:$G$75,6,TRUE)), (IF(2-$F$22=2, (VLOOKUP(2,Tablas!$A$73:$G$75,6,TRUE)), 0)))))), (IF($F$20=1,(IF(1-$F$22=0, 0, (IF(1-$F$22=1,(VLOOKUP(1,Tablas!$A$73:$G$75,6,TRUE)),0)))),0)))))))))))))))))))) -> 1369.76 | K31: =(IF($F$18=1, (IF($F$20=0, 0, (IF($F$22>$F$20, (VLOOKUP($F$20,Tablas!$A$73:$G$75,7,TRUE)), (IF($F$20>4,(IF($F$22=0, (VLOOKUP(3,Tablas!$A$73:$G$75,7,TRUE)), (IF($F$22=1, (VLOOKUP(3,Tablas!$A$73:$G$75,7,TRUE)), (IF($F$22=2, (VLOOKUP(3,Tablas!$A$73:$G$75,7,TRUE)), (VLOOKUP(3,Tablas!$A$73:$G$75,7,TRUE)))))))), (IF($F$20=4,(IF(4-$F$22=0,(VLOOKUP(2,Tablas!$A$73:$G$75,7,TRUE)), (IF(4-$F$22=1,(VLOOKUP(2,Tablas!$A$73:$G$75,7,TRUE)), (IF(4-$F$22=2, (VLOOKUP(2,Tablas!$A$73:$G$75,7,TRUE)), (VLOOKUP(3,Tablas!$A$73:$G$75,7,TRUE)))))))), (IF($F$20=3,(IF(3-$F$22=0,(VLOOKUP(1,Tablas!$A$73:$G$75,7,TRUE)), (IF(3-$F$22=1,(VLOOKUP(1,Tablas!$A$73:$G$75,7,TRUE)), (IF(3-$F$22=2, (VLOOKUP(2,Tablas!$A$73:$G$75,7,TRUE)), (VLOOKUP(3,Tablas!$A$73:$G$75,7,TRUE)))))))), (IF($F$20=2,(IF(2-$F$22=0, 0, (IF(2-$F$22=1,(VLOOKUP(1,Tablas!$A$73:$G$75,7,TRUE)), (IF(2-$F$22=2, (VLOOKUP(2,Tablas!$A$73:$G$75,7,TRUE)), 0)))))), (IF($F$20=1,(IF(1-$F$22=0, 0, (IF(1-$F$22=1,(VLOOKUP(1,Tablas!$A$73:$G$75,7,TRUE)),0)))),0)))))))))))))), (IF($F$20=0, 0, (IF($F$22>$F$20, (VLOOKUP($F$20,Tablas!$A$73:$G$75,7,TRUE)), (IF($F$20=4,(IF(4-$F$22=0, 0, (IF(4-$F$22=1, (VLOOKUP(1,Tablas!$A$73:$G$75,7,TRUE)), (IF(4-$F$22=2, (VLOOKUP(2,Tablas!$A$73:$G$75,7,TRUE)), (IF(4-$F$22=3, (VLOOKUP(3,Tablas!$A$73:$G$75,7,TRUE)), (IF(4-$F$22=4, (VLOOKUP(3,Tablas!$A$73:$G$75,7,TRUE)), 0)))))))))), (IF($F$20=5,(IF(5-$F$22=0, (VLOOKUP(1,Tablas!$A$73:$G$75,7,TRUE)), (IF(5-$F$22=1, (VLOOKUP(1,Tablas!$A$73:$G$75,7,TRUE)), (IF(5-$F$22=2, (VLOOKUP(2,Tablas!$A$73:$G$75,7,TRUE)), (IF(5-$F$22=3, (VLOOKUP(3,Tablas!$A$73:$G$75,7,TRUE)), (IF(5-$F$22=4, (VLOOKUP(3,Tablas!$A$73:$G$75,7,TRUE)), (VLOOKUP(3,Tablas!$A$73:$G$75,7,TRUE)))))))))))), (IF($F$20=6,(IF(6-$F$22=0, (VLOOKUP(2,Tablas!$A$73:$G$75,7,TRUE)), (IF(6-$F$22=1, (VLOOKUP(2,Tablas!$A$73:$G$75,7,TRUE)), (IF(6-$F$22=2, (VLOOKUP(2,Tablas!$A$73:$G$75,7,TRUE)), (IF(6-$F$22=3, (VLOOKUP(3,Tablas!$A$73:$G$75,7,TRUE)), (IF(6-$F$22=4, (VLOOKUP(3,Tablas!$A$73:$G$75,7,TRUE)), (VLOOKUP(3,Tablas!$A$73:$G$75,7,TRUE)))))))))))), (IF($F$20>6,(IF(7-$F$22=0, (VLOOKUP(3,Tablas!$A$73:$G$75,7,TRUE)), (IF(7-$F$22=1, (VLOOKUP(3,Tablas!$A$73:$B$75,7,TRUE)), (IF(7-$F$22=2, (VLOOKUP(3,Tablas!$A$73:$G$75,7,TRUE)), (IF(7-$F$22=3, (VLOOKUP(3,Tablas!$A$73:$G$75,7,TRUE)), (IF(7-$F$22=4, (VLOOKUP(3,Tablas!$A$73:$G$75,7,TRUE)), (VLOOKUP(3,Tablas!$A$73:$G$75,7,TRUE)))))))))))), (IF($F$20=3,(IF(3-$F$22=0,0, (IF(3-$F$22=1,(VLOOKUP(1,Tablas!$A$73:$G$75,7,TRUE)), (IF(3-$F$22=2, (VLOOKUP(2,Tablas!$A$73:$G$75,7,TRUE)), (VLOOKUP(3,Tablas!$A$73:$G$75,7,TRUE)))))))), (IF($F$20=2,(IF(2-$F$22=0, 0, (IF(2-$F$22=1,(VLOOKUP(1,Tablas!$A$73:$G$75,7,TRUE)), (IF(2-$F$22=2, (VLOOKUP(2,Tablas!$A$73:$G$75,7,TRUE)), 0)))))), (IF($F$20=1,(IF(1-$F$22=0, 0, (IF(1-$F$22=1,(VLOOKUP(1,Tablas!$A$73:$G$75,7,TRUE)),0)))),0)))))))))))))))))))) -> 1062.88
E32: Total de Prima neta | G32: =SUM(G29:G31) -> 16479.68 | H32: =SUM(H29:H31) -> 14446.32 | I32: =SUM(I29:I31) -> 11937.52 | J32: =SUM(J29:J31) -> 10351.6 | K32: =SUM(K29:K31) -> 8029.84
E33: Ajuste por variante con coaseguro fuera del país de residencia | G33: =IF('INGRESO DE DATOS'!$H$20,G32*-25%,0) -> 0 | H33: =IF('INGRESO DE DATOS'!$H$20,H32*-25%,0) -> 0 | I33: =IF('INGRESO DE DATOS'!$H$20,I32*-25%,0) -> 0 | J33: =IF('INGRESO DE DATOS'!$H$20,J32*-25%,0) -> 0 | K33: =IF('INGRESO DE DATOS'!$H$20,K32*-25%,0) -> 0
E34: Tarifa administrativa anual | G34: 75 | H34: 75 | I34: 75 | J34: 75 | K34: 75
E35: IVA (12%) | G35: =(G32+G34)*0% -> 0 | H35: =(H32+H34)*0% -> 0 | I35: 0 | J35: 0 | K35: 0
E36: TOTAL ANUAL | G36: =SUM(G32:G35) -> 16554.68 | H36: =SUM(H32:H35) -> 14521.32 | I36: 12012.52 | J36: 10426.6 | K36: 8104.84
E37: Ahorros en tarifas de prima para niños | G37: =IF($F$18=1,IF($F$20=0,0,IF($F$22=0,0,IF($F$22=1,(VLOOKUP(1,Tablas!$A$73:$B$75,3,TRUE)),(VLOOKUP(2,Tablas!$A$73:$G$75,3,TRUE))))), IF($F$20=0,0,IF($F$22=0,0,IF($F$22=1,(VLOOKUP(1,Tablas!$A$73:$G$75,3,TRUE)),IF($F$22=2,(VLOOKUP(2,Tablas!$A$73:$G$75,3,TRUE)), (VLOOKUP(3,Tablas!$A$73:$G$75,3,TRUE))))))) -> 2125.76 | H37: =IF($F$18=1,IF($F$20=0,0,IF($F$22=0,0,IF($F$22=1,(VLOOKUP(1,Tablas!$A$73:$B$75,3,TRUE)),(VLOOKUP(2,Tablas!$A$73:$G$75,3,TRUE))))), IF($F$20=0,0,IF($F$22=0,0,IF($F$22=1,(VLOOKUP(1,Tablas!$A$73:$G$75,3,TRUE)),IF($F$22=2,(VLOOKUP(2,Tablas!$A$73:$G$75,3,TRUE)), (VLOOKUP(3,Tablas!$A$73:$G$75,3,TRUE))))))) -> 2125.76 | I37: =IF($F$18=1,IF($F$20=0,0,IF($F$22=0,0,IF($F$22=1,(VLOOKUP(1,Tablas!$A$73:$B$75,3,TRUE)),(VLOOKUP(2,Tablas!$A$73:$G$75,3,TRUE))))), IF($F$20=0,0,IF($F$22=0,0,IF($F$22=1,(VLOOKUP(1,Tablas!$A$73:$G$75,3,TRUE)),IF($F$22=2,(VLOOKUP(2,Tablas!$A$73:$G$75,3,TRUE)), (VLOOKUP(3,Tablas!$A$73:$G$75,3,TRUE))))))) -> 2125.76 | J37: =IF($F$18=1,IF($F$20=0,0,IF($F$22=0,0,IF($F$22=1,(VLOOKUP(1,Tablas!$A$73:$B$75,3,TRUE)),(VLOOKUP(2,Tablas!$A$73:$G$75,3,TRUE))))), IF($F$20=0,0,IF($F$22=0,0,IF($F$22=1,(VLOOKUP(1,Tablas!$A$73:$G$75,3,TRUE)),IF($F$22=2,(VLOOKUP(2,Tablas!$A$73:$G$75,3,TRUE)), (VLOOKUP(3,Tablas!$A$73:$G$75,3,TRUE))))))) -> 2125.76 | K37: =IF($F$18=1,IF($F$20=0,0,IF($F$22=0,0,IF($F$22=1,(VLOOKUP(1,Tablas!$A$73:$B$75,3,TRUE)),(VLOOKUP(2,Tablas!$A$73:$G$75,3,TRUE))))), IF($F$20=0,0,IF($F$22=0,0,IF($F$22=1,(VLOOKUP(1,Tablas!$A$73:$G$75,3,TRUE)),IF($F$22=2,(VLOOKUP(2,Tablas!$A$73:$G$75,3,TRUE)), (VLOOKUP(3,Tablas!$A$73:$G$75,3,TRUE))))))) -> 2125.76
E39: Tarifas semi anuales
E40: Prima para Asegurado Titular | G40: =VLOOKUP($J$18,Tablas!$A$455:$G$521,3,TRUE) -> 3170.4176 | H40: =VLOOKUP($J$18,Tablas!$A$455:$G$521,4,TRUE) -> 2778.9384 | I40: =VLOOKUP($J$18,Tablas!$A$455:$G$521,5,TRUE) -> 2305.2456 | J40: =VLOOKUP($J$18,Tablas!$A$455:$G$521,6,TRUE) -> 1998.6512 | K40: =VLOOKUP($J$18,Tablas!$A$455:$G$521,7,TRUE) -> 1550.4832
E41: Prima para conyuge | G41: =IF($F$18=1,0,(VLOOKUP($J$20,Tablas!$A$455:$G$521,3,TRUE))) -> 4437.16 | H41: =IF($F$18=1,0,(VLOOKUP($J$20,Tablas!$A$455:$G$521,4,TRUE))) -> 3889.8608 | I41: =IF($F$18=1,0,(VLOOKUP($J$20,Tablas!$A$455:$G$521,5,TRUE))) -> 3184.9608 | J41: =IF($F$18=1,0,(VLOOKUP($J$20,Tablas!$A$455:$G$521,6,TRUE))) -> 2761.724 | K41: =IF($F$18=1,0,(VLOOKUP($J$20,Tablas!$A$455:$G$521,7,TRUE))) -> 2142.0056
E42: Prima para hijo (s) | G42: =IF($F$18=1, (IF($F$20=0, 0, (IF($F$22>$F$20, (VLOOKUP($F$20,Tablas!$A$522:$G$524,3,TRUE)), (IF($F$20>4,(IF($F$22=0, (VLOOKUP(3,Tablas!$A$522:$G$524,3,TRUE)), (IF($F$22=1, (VLOOKUP(3,Tablas!$A$522:$G$524,3,TRUE)), (IF($F$22=2, (VLOOKUP(3,Tablas!$A$522:$G$524,3,TRUE)), (VLOOKUP(3,Tablas!$A$522:$G$524,3,TRUE)))))))), (IF($F$20=4,(IF(4-$F$22=0,(VLOOKUP(2,Tablas!$A$522:$G$524,3,TRUE)), (IF(4-$F$22=1,(VLOOKUP(2,Tablas!$A$522:$G$524,3,TRUE)), (IF(4-$F$22=2, (VLOOKUP(2,Tablas!$A$522:$G$524,3,TRUE)), (VLOOKUP(3,Tablas!$A$522:$G$524,3,TRUE)))))))), (IF($F$20=3,(IF(3-$F$22=0,(VLOOKUP(1,Tablas!$A$522:$G$524,3,TRUE)), (IF(3-$F$22=1,(VLOOKUP(1,Tablas!$A$522:$G$524,3,TRUE)), (IF(3-$F$22=2, (VLOOKUP(2,Tablas!$A$522:$G$524,3,TRUE)), (VLOOKUP(3,Tablas!$A$522:$G$524,3,TRUE)))))))), (IF($F$20=2,(IF(2-$F$22=0, 0, (IF(2-$F$22=1,(VLOOKUP(1,Tablas!$A$522:$G$524,3,TRUE)), (IF(2-$F$22=2, (VLOOKUP(2,Tablas!$A$522:$G$524,3,TRUE)), 0)))))), (IF($F$20=1,(IF(1-$F$22=0, 0, (IF(1-$F$22=1,(VLOOKUP(1,Tablas!$A$522:$G$524,3,TRUE)),0)))),0)))))))))))))), (IF($F$20=0, 0, (IF($F$22>$F$20, (VLOOKUP($F$20,Tablas!$A$522:$G$524,3,TRUE)), (IF($F$20=4,(IF(4-$F$22=0, 0, (IF(4-$F$22=1, (VLOOKUP(1,Tablas!$A$522:$G$524,3,TRUE)), (IF(4-$F$22=2, (VLOOKUP(2,Tablas!$A$522:$G$524,3,TRUE)), (IF(4-$F$22=3, (VLOOKUP(3,Tablas!$A$522:$G$524,3,TRUE)), (IF(4-$F$22=4, (VLOOKUP(3,Tablas!$A$522:$G$524,3,TRUE)), 0)))))))))), (IF($F$20=5,(IF(5-$F$22=0, (VLOOKUP(1,Tablas!$A$522:$G$524,3,TRUE)), (IF(5-$F$22=1, (VLOOKUP(1,Tablas!$A$522:$G$524,3,TRUE)), (IF(5-$F$22=2, (VLOOKUP(2,Tablas!$A$522:$G$524,3,TRUE)), (IF(5-$F$22=3, (VLOOKUP(3,Tablas!$A$522:$G$524,3,TRUE)), (IF(5-$F$22=4, (VLOOKUP(3,Tablas!$A$522:$G$524,3,TRUE)), (VLOOKUP(3,Tablas!$A$522:$G$524,3,TRUE)))))))))))), (IF($F$20=6,(IF(6-$F$22=0, (VLOOKUP(2,Tablas!$A$522:$G$524,3,TRUE)), (IF(6-$F$22=1, (VLOOKUP(2,Tablas!$A$522:$G$524,3,TRUE)), (IF(6-$F$22=2, (VLOOKUP(2,Tablas!$A$522:$G$524,3,TRUE)), (IF(6-$F$22=3, (VLOOKUP(3,Tablas!$A$522:$G$524,3,TRUE)), (IF(6-$F$22=4, (VLOOKUP(3,Tablas!$A$522:$G$524,3,TRUE)), (VLOOKUP(3,Tablas!$A$522:$G$524,3,TRUE)))))))))))), (IF($F$20>6,(IF(7-$F$22=0, (VLOOKUP(3,Tablas!$A$522:$G$524,3,TRUE)), (IF(7-$F$22=1, (VLOOKUP(3,Tablas!$A$522:$G$524,3,TRUE)), (IF(7-$F$22=2, (VLOOKUP(3,Tablas!$A$522:$G$524,3,TRUE)), (IF(7-$F$22=3, (VLOOKUP(3,Tablas!$A$522:$G$524,3,TRUE)), (IF(7-$F$22=4, (VLOOKUP(3,Tablas!$A$522:$G$524,3,TRUE)), (VLOOKUP(3,Tablas!$A$522:$G$524,3,TRUE)))))))))))), (IF($F$20=3,(IF(3-$F$22=0,0, (IF(3-$F$22=1,(VLOOKUP(1,Tablas!$A$522:$G$524,3,TRUE)), (IF(3-$F$22=2, (VLOOKUP(2,Tablas!$A$522:$G$524,3,TRUE)), (VLOOKUP(3,Tablas!$A$522:$G$524,3,TRUE)))))))), (IF($F$20=2,(IF(2-$F$22=0, 0, (IF(2-$F$22=1,(VLOOKUP(1,Tablas!$A$522:$G$524,3,TRUE)), (IF(2-$F$22=2, (VLOOKUP(2,Tablas!$A$522:$G$524,3,TRUE)), 0)))))), (IF($F$20=1,(IF(1-$F$22=0, 0, (IF(1-$F$22=1,(VLOOKUP(1,Tablas!$A$522:$G$524,3,TRUE)),0)))),0))))))))))))))))))) -> 1126.6528 | H42: =IF($F$18=1, (IF($F$20=0, 0, (IF($F$22>$F$20, (VLOOKUP($F$20,Tablas!$A$522:$G$524,4,TRUE)), (IF($F$20>4,(IF($F$22=0, (VLOOKUP(3,Tablas!$A$522:$G$524,4,TRUE)), (IF($F$22=1, (VLOOKUP(3,Tablas!$A$522:$G$524,4,TRUE)), (IF($F$22=2, (VLOOKUP(3,Tablas!$A$522:$G$524,4,TRUE)), (VLOOKUP(3,Tablas!$A$522:$G$524,4,TRUE)))))))), (IF($F$20=4,(IF(4-$F$22=0,(VLOOKUP(2,Tablas!$A$522:$G$524,4,TRUE)), (IF(4-$F$22=1,(VLOOKUP(2,Tablas!$A$522:$G$524,4,TRUE)), (IF(4-$F$22=2, (VLOOKUP(2,Tablas!$A$522:$G$524,4,TRUE)), (VLOOKUP(3,Tablas!$A$522:$G$524,4,TRUE)))))))), (IF($F$20=3,(IF(3-$F$22=0,(VLOOKUP(1,Tablas!$A$522:$G$524,4,TRUE)), (IF(3-$F$22=1,(VLOOKUP(1,Tablas!$A$522:$G$524,4,TRUE)), (IF(3-$F$22=2, (VLOOKUP(2,Tablas!$A$522:$G$524,4,TRUE)), (VLOOKUP(3,Tablas!$A$522:$G$524,4,TRUE)))))))), (IF($F$20=2,(IF(2-$F$22=0, 0, (IF(2-$F$22=1,(VLOOKUP(1,Tablas!$A$522:$G$524,4,TRUE)), (IF(2-$F$22=2, (VLOOKUP(2,Tablas!$A$522:$G$524,4,TRUE)), 0)))))), (IF($F$20=1,(IF(1-$F$22=0, 0, (IF(1-$F$22=1,(VLOOKUP(1,Tablas!$A$522:$G$524,4,TRUE)),0)))),0)))))))))))))), (IF($F$20=0, 0, (IF($F$22>$F$20, (VLOOKUP($F$20,Tablas!$A$522:$G$524,4,TRUE)), (IF($F$20=4,(IF(4-$F$22=0, 0, (IF(4-$F$22=1, (VLOOKUP(1,Tablas!$A$522:$G$524,4,TRUE)), (IF(4-$F$22=2, (VLOOKUP(2,Tablas!$A$522:$G$524,4,TRUE)), (IF(4-$F$22=3, (VLOOKUP(3,Tablas!$A$522:$G$524,4,TRUE)), (IF(4-$F$22=4, (VLOOKUP(3,Tablas!$A$522:$G$524,4,TRUE)), 0)))))))))), (IF($F$20=5,(IF(5-$F$22=0, (VLOOKUP(1,Tablas!$A$522:$G$524,4,TRUE)), (IF(5-$F$22=1, (VLOOKUP(1,Tablas!$A$522:$G$524,4,TRUE)), (IF(5-$F$22=2, (VLOOKUP(2,Tablas!$A$522:$G$524,4,TRUE)), (IF(5-$F$22=3, (VLOOKUP(3,Tablas!$A$522:$G$524,4,TRUE)), (IF(5-$F$22=4, (VLOOKUP(3,Tablas!$A$522:$G$524,4,TRUE)), (VLOOKUP(3,Tablas!$A$522:$G$524,4,TRUE)))))))))))), (IF($F$20=6,(IF(6-$F$22=0, (VLOOKUP(2,Tablas!$A$522:$G$524,4,TRUE)), (IF(6-$F$22=1, (VLOOKUP(2,Tablas!$A$522:$G$524,4,TRUE)), (IF(6-$F$22=2, (VLOOKUP(2,Tablas!$A$522:$G$524,4,TRUE)), (IF(6-$F$22=3, (VLOOKUP(3,Tablas!$A$522:$G$524,4,TRUE)), (IF(6-$F$22=4, (VLOOKUP(3,Tablas!$A$522:$G$524,4,TRUE)), (VLOOKUP(3,Tablas!$A$522:$G$524,4,TRUE)))))))))))), (IF($F$20>6,(IF(7-$F$22=0, (VLOOKUP(3,Tablas!$A$522:$G$524,4,TRUE)), (IF(7-$F$22=1, (VLOOKUP(3,Tablas!$A$522:$G$524,4,TRUE)), (IF(7-$F$22=2, (VLOOKUP(3,Tablas!$A$522:$G$524,4,TRUE)), (IF(7-$F$22=3, (VLOOKUP(3,Tablas!$A$522:$G$524,4,TRUE)), (IF(7-$F$22=4, (VLOOKUP(3,Tablas!$A$522:$G$524,4,TRUE)), (VLOOKUP(3,Tablas!$A$522:$G$524,4,TRUE)))))))))))), (IF($F$20=3,(IF(3-$F$22=0,0, (IF(3-$F$22=1,(VLOOKUP(1,Tablas!$A$522:$G$524,4,TRUE)), (IF(3-$F$22=2, (VLOOKUP(2,Tablas!$A$522:$G$524,4,TRUE)), (VLOOKUP(3,Tablas!$A$522:$G$524,4,TRUE)))))))), (IF($F$20=2,(IF(2-$F$22=0, 0, (IF(2-$F$22=1,(VLOOKUP(1,Tablas!$A$522:$G$524,4,TRUE)), (IF(2-$F$22=2, (VLOOKUP(2,Tablas!$A$522:$G$524,4,TRUE)), 0)))))), (IF($F$20=1,(IF(1-$F$22=0, 0, (IF(1-$F$22=1,(VLOOKUP(1,Tablas!$A$522:$G$524,4,TRUE)),0)))),0))))))))))))))))))) -> 987.7504 | I42: =IF($F$18=1, (IF($F$20=0, 0, (IF($F$22>$F$20, (VLOOKUP($F$20,Tablas!$A$522:$G$524,5,TRUE)), (IF($F$20>4,(IF($F$22=0, (VLOOKUP(3,Tablas!$A$522:$G$524,5,TRUE)), (IF($F$22=1, (VLOOKUP(3,Tablas!$A$522:$G$524,5,TRUE)), (IF($F$22=2, (VLOOKUP(3,Tablas!$A$522:$G$524,5,TRUE)), (VLOOKUP(3,Tablas!$A$522:$G$524,5,TRUE)))))))), (IF($F$20=4,(IF(4-$F$22=0,(VLOOKUP(2,Tablas!$A$522:$G$524,5,TRUE)), (IF(4-$F$22=1,(VLOOKUP(2,Tablas!$A$522:$G$524,5,TRUE)), (IF(4-$F$22=2, (VLOOKUP(2,Tablas!$A$522:$G$524,5,TRUE)), (VLOOKUP(3,Tablas!$A$522:$G$524,5,TRUE)))))))), (IF($F$20=3,(IF(3-$F$22=0,(VLOOKUP(1,Tablas!$A$522:$G$524,5,TRUE)), (IF(3-$F$22=1,(VLOOKUP(1,Tablas!$A$522:$G$524,5,TRUE)), (IF(3-$F$22=2, (VLOOKUP(2,Tablas!$A$522:$G$524,5,TRUE)), (VLOOKUP(3,Tablas!$A$522:$G$524,5,TRUE)))))))), (IF($F$20=2,(IF(2-$F$22=0, 0, (IF(2-$F$22=1,(VLOOKUP(1,Tablas!$A$522:$G$524,5,TRUE)), (IF(2-$F$22=2, (VLOOKUP(2,Tablas!$A$522:$G$524,5,TRUE)), 0)))))), (IF($F$20=1,(IF(1-$F$22=0, 0, (IF(1-$F$22=1,(VLOOKUP(1,Tablas!$A$522:$G$524,5,TRUE)),0)))),0)))))))))))))), (IF($F$20=0, 0, (IF($F$22>$F$20, (VLOOKUP($F$20,Tablas!$A$522:$G$524,5,TRUE)), (IF($F$20=4,(IF(4-$F$22=0, 0, (IF(4-$F$22=1, (VLOOKUP(1,Tablas!$A$522:$G$524,5,TRUE)), (IF(4-$F$22=2, (VLOOKUP(2,Tablas!$A$522:$G$524,5,TRUE)), (IF(4-$F$22=3, (VLOOKUP(3,Tablas!$A$522:$G$524,5,TRUE)), (IF(4-$F$22=4, (VLOOKUP(3,Tablas!$A$522:$G$524,5,TRUE)), 0)))))))))), (IF($F$20=5,(IF(5-$F$22=0, (VLOOKUP(1,Tablas!$A$522:$G$524,5,TRUE)), (IF(5-$F$22=1, (VLOOKUP(1,Tablas!$A$522:$G$524,5,TRUE)), (IF(5-$F$22=2, (VLOOKUP(2,Tablas!$A$522:$G$524,5,TRUE)), (IF(5-$F$22=3, (VLOOKUP(3,Tablas!$A$522:$G$524,5,TRUE)), (IF(5-$F$22=4, (VLOOKUP(3,Tablas!$A$522:$G$524,5,TRUE)), (VLOOKUP(3,Tablas!$A$522:$G$524,5,TRUE)))))))))))), (IF($F$20=6,(IF(6-$F$22=0, (VLOOKUP(2,Tablas!$A$522:$G$524,5,TRUE)), (IF(6-$F$22=1, (VLOOKUP(2,Tablas!$A$522:$G$524,5,TRUE)), (IF(6-$F$22=2, (VLOOKUP(2,Tablas!$A$522:$G$524,5,TRUE)), (IF(6-$F$22=3, (VLOOKUP(3,Tablas!$A$522:$G$524,5,TRUE)), (IF(6-$F$22=4, (VLOOKUP(3,Tablas!$A$522:$G$524,5,TRUE)), (VLOOKUP(3,Tablas!$A$522:$G$524,5,TRUE)))))))))))), (IF($F$20>6,(IF(7-$F$22=0, (VLOOKUP(3,Tablas!$A$522:$G$524,5,TRUE)), (IF(7-$F$22=1, (VLOOKUP(3,Tablas!$A$522:$G$524,5,TRUE)), (IF(7-$F$22=2, (VLOOKUP(3,Tablas!$A$522:$G$524,5,TRUE)), (IF(7-$F$22=3, (VLOOKUP(3,Tablas!$A$522:$G$524,5,TRUE)), (IF(7-$F$22=4, (VLOOKUP(3,Tablas!$A$522:$G$524,5,TRUE)), (VLOOKUP(3,Tablas!$A$522:$G$524,5,TRUE)))))))))))), (IF($F$20=3,(IF(3-$F$22=0,0, (IF(3-$F$22=1,(VLOOKUP(1,Tablas!$A$522:$G$524,5,TRUE)), (IF(3-$F$22=2, (VLOOKUP(2,Tablas!$A$522:$G$524,5,TRUE)), (VLOOKUP(3,Tablas!$A$522:$G$524,5,TRUE)))))))), (IF($F$20=2,(IF(2-$F$22=0, 0, (IF(2-$F$22=1,(VLOOKUP(1,Tablas!$A$522:$G$524,5,TRUE)), (IF(2-$F$22=2, (VLOOKUP(2,Tablas!$A$522:$G$524,5,TRUE)), 0)))))), (IF($F$20=1,(IF(1-$F$22=0, 0, (IF(1-$F$22=1,(VLOOKUP(1,Tablas!$A$522:$G$524,5,TRUE)),0)))),0))))))))))))))))))) -> 836.6792 | J42: =IF($F$18=1, (IF($F$20=0, 0, (IF($F$22>$F$20, (VLOOKUP($F$20,Tablas!$A$522:$G$524,6,TRUE)), (IF($F$20>4,(IF($F$22=0, (VLOOKUP(3,Tablas!$A$522:$G$524,6,TRUE)), (IF($F$22=1, (VLOOKUP(3,Tablas!$A$522:$G$524,6,TRUE)), (IF($F$22=2, (VLOOKUP(3,Tablas!$A$522:$G$524,6,TRUE)), (VLOOKUP(3,Tablas!$A$522:$G$524,6,TRUE)))))))), (IF($F$20=4,(IF(4-$F$22=0,(VLOOKUP(2,Tablas!$A$522:$G$524,6,TRUE)), (IF(4-$F$22=1,(VLOOKUP(2,Tablas!$A$522:$G$524,6,TRUE)), (IF(4-$F$22=2, (VLOOKUP(2,Tablas!$A$522:$G$524,6,TRUE)), (VLOOKUP(3,Tablas!$A$522:$G$524,6,TRUE)))))))), (IF($F$20=3,(IF(3-$F$22=0,(VLOOKUP(1,Tablas!$A$522:$G$524,6,TRUE)), (IF(3-$F$22=1,(VLOOKUP(1,Tablas!$A$522:$G$524,6,TRUE)), (IF(3-$F$22=2, (VLOOKUP(2,Tablas!$A$522:$G$524,6,TRUE)), (VLOOKUP(3,Tablas!$A$522:$G$524,6,TRUE)))))))), (IF($F$20=2,(IF(2-$F$22=0, 0, (IF(2-$F$22=1,(VLOOKUP(1,Tablas!$A$522:$G$524,6,TRUE)), (IF(2-$F$22=2, (VLOOKUP(2,Tablas!$A$522:$G$524,6,TRUE)), 0)))))), (IF($F$20=1,(IF(1-$F$22=0, 0, (IF(1-$F$22=1,(VLOOKUP(1,Tablas!$A$522:$G$524,6,TRUE)),0)))),0)))))))))))))), (IF($F$20=0, 0, (IF($F$22>$F$20, (VLOOKUP($F$20,Tablas!$A$522:$G$524,6,TRUE)), (IF($F$20=4,(IF(4-$F$22=0, 0, (IF(4-$F$22=1, (VLOOKUP(1,Tablas!$A$522:$G$524,6,TRUE)), (IF(4-$F$22=2, (VLOOKUP(2,Tablas!$A$522:$G$524,6,TRUE)), (IF(4-$F$22=3, (VLOOKUP(3,Tablas!$A$522:$G$524,6,TRUE)), (IF(4-$F$22=4, (VLOOKUP(3,Tablas!$A$522:$G$524,6,TRUE)), 0)))))))))), (IF($F$20=5,(IF(5-$F$22=0, (VLOOKUP(1,Tablas!$A$522:$G$524,6,TRUE)), (IF(5-$F$22=1, (VLOOKUP(1,Tablas!$A$522:$G$524,6,TRUE)), (IF(5-$F$22=2, (VLOOKUP(2,Tablas!$A$522:$G$524,6,TRUE)), (IF(5-$F$22=3, (VLOOKUP(3,Tablas!$A$522:$G$524,6,TRUE)), (IF(5-$F$22=4, (VLOOKUP(3,Tablas!$A$522:$G$524,6,TRUE)), (VLOOKUP(3,Tablas!$A$522:$G$524,6,TRUE)))))))))))), (IF($F$20=6,(IF(6-$F$22=0, (VLOOKUP(2,Tablas!$A$522:$G$524,6,TRUE)), (IF(6-$F$22=1, (VLOOKUP(2,Tablas!$A$522:$G$524,6,TRUE)), (IF(6-$F$22=2, (VLOOKUP(2,Tablas!$A$522:$G$524,6,TRUE)), (IF(6-$F$22=3, (VLOOKUP(3,Tablas!$A$522:$G$524,6,TRUE)), (IF(6-$F$22=4, (VLOOKUP(3,Tablas!$A$522:$G$524,6,TRUE)), (VLOOKUP(3,Tablas!$A$522:$G$524,6,TRUE)))))))))))), (IF($F$20>6,(IF(7-$F$22=0, (VLOOKUP(3,Tablas!$A$522:$G$524,6,TRUE)), (IF(7-$F$22=1, (VLOOKUP(3,Tablas!$A$522:$G$524,6,TRUE)), (IF(7-$F$22=2, (VLOOKUP(3,Tablas!$A$522:$G$524,6,TRUE)), (IF(7-$F$22=3, (VLOOKUP(3,Tablas!$A$522:$G$524,6,TRUE)), (IF(7-$F$22=4, (VLOOKUP(3,Tablas!$A$522:$G$524,6,TRUE)), (VLOOKUP(3,Tablas!$A$522:$G$524,6,TRUE)))))))))))), (IF($F$20=3,(IF(3-$F$22=0,0, (IF(3-$F$22=1,(VLOOKUP(1,Tablas!$A$522:$G$524,6,TRUE)), (IF(3-$F$22=2, (VLOOKUP(2,Tablas!$A$522:$G$524,6,TRUE)), (VLOOKUP(3,Tablas!$A$522:$G$524,6,TRUE)))))))), (IF($F$20=2,(IF(2-$F$22=0, 0, (IF(2-$F$22=1,(VLOOKUP(1,Tablas!$A$522:$G$524,6,TRUE)), (IF(2-$F$22=2, (VLOOKUP(2,Tablas!$A$522:$G$524,6,TRUE)), 0)))))), (IF($F$20=1,(IF(1-$F$22=0, 0, (IF(1-$F$22=1,(VLOOKUP(1,Tablas!$A$522:$G$524,6,TRUE)),0)))),0))))))))))))))))))) -> 725.9728 | K42: =IF($F$18=1, (IF($F$20=0, 0, (IF($F$22>$F$20, (VLOOKUP($F$20,Tablas!$A$522:$G$524,7,TRUE)), (IF($F$20>4,(IF($F$22=0, (VLOOKUP(3,Tablas!$A$522:$G$524,7,TRUE)), (IF($F$22=1, (VLOOKUP(3,Tablas!$A$522:$G$524,7,TRUE)), (IF($F$22=2, (VLOOKUP(3,Tablas!$A$522:$G$524,7,TRUE)), (VLOOKUP(3,Tablas!$A$522:$G$524,7,TRUE)))))))), (IF($F$20=4,(IF(4-$F$22=0,(VLOOKUP(2,Tablas!$A$522:$G$524,7,TRUE)), (IF(4-$F$22=1,(VLOOKUP(2,Tablas!$A$522:$G$524,7,TRUE)), (IF(4-$F$22=2, (VLOOKUP(2,Tablas!$A$522:$G$524,7,TRUE)), (VLOOKUP(3,Tablas!$A$522:$G$524,7,TRUE)))))))), (IF($F$20=3,(IF(3-$F$22=0,(VLOOKUP(1,Tablas!$A$522:$G$524,7,TRUE)), (IF(3-$F$22=1,(VLOOKUP(1,Tablas!$A$522:$G$524,7,TRUE)), (IF(3-$F$22=2, (VLOOKUP(2,Tablas!$A$522:$G$524,7,TRUE)), (VLOOKUP(3,Tablas!$A$522:$G$524,7,TRUE)))))))), (IF($F$20=2,(IF(2-$F$22=0, 0, (IF(2-$F$22=1,(VLOOKUP(1,Tablas!$A$522:$G$524,7,TRUE)), (IF(2-$F$22=2, (VLOOKUP(2,Tablas!$A$522:$G$524,7,TRUE)), 0)))))), (IF($F$20=1,(IF(1-$F$22=0, 0, (IF(1-$F$22=1,(VLOOKUP(1,Tablas!$A$522:$G$524,7,TRUE)),0)))),0)))))))))))))), (IF($F$20=0, 0, (IF($F$22>$F$20, (VLOOKUP($F$20,Tablas!$A$522:$G$524,7,TRUE)), (IF($F$20=4,(IF(4-$F$22=0, 0, (IF(4-$F$22=1, (VLOOKUP(1,Tablas!$A$522:$G$524,7,TRUE)), (IF(4-$F$22=2, (VLOOKUP(2,Tablas!$A$522:$G$524,7,TRUE)), (IF(4-$F$22=3, (VLOOKUP(3,Tablas!$A$522:$G$524,7,TRUE)), (IF(4-$F$22=4, (VLOOKUP(3,Tablas!$A$522:$G$524,7,TRUE)), 0)))))))))), (IF($F$20=5,(IF(5-$F$22=0, (VLOOKUP(1,Tablas!$A$522:$G$524,7,TRUE)), (IF(5-$F$22=1, (VLOOKUP(1,Tablas!$A$522:$G$524,7,TRUE)), (IF(5-$F$22=2, (VLOOKUP(2,Tablas!$A$522:$G$524,7,TRUE)), (IF(5-$F$22=3, (VLOOKUP(3,Tablas!$A$522:$G$524,7,TRUE)), (IF(5-$F$22=4, (VLOOKUP(3,Tablas!$A$522:$G$524,7,TRUE)), (VLOOKUP(3,Tablas!$A$522:$G$524,7,TRUE)))))))))))), (IF($F$20=6,(IF(6-$F$22=0, (VLOOKUP(2,Tablas!$A$522:$G$524,7,TRUE)), (IF(6-$F$22=1, (VLOOKUP(2,Tablas!$A$522:$G$524,7,TRUE)), (IF(6-$F$22=2, (VLOOKUP(2,Tablas!$A$522:$G$524,7,TRUE)), (IF(6-$F$22=3, (VLOOKUP(3,Tablas!$A$522:$G$524,7,TRUE)), (IF(6-$F$22=4, (VLOOKUP(3,Tablas!$A$522:$G$524,7,TRUE)), (VLOOKUP(3,Tablas!$A$522:$G$524,7,TRUE)))))))))))), (IF($F$20>6,(IF(7-$F$22=0, (VLOOKUP(3,Tablas!$A$522:$G$524,7,TRUE)), (IF(7-$F$22=1, (VLOOKUP(3,Tablas!$A$522:$G$524,7,TRUE)), (IF(7-$F$22=2, (VLOOKUP(3,Tablas!$A$522:$G$524,7,TRUE)), (IF(7-$F$22=3, (VLOOKUP(3,Tablas!$A$522:$G$524,7,TRUE)), (IF(7-$F$22=4, (VLOOKUP(3,Tablas!$A$522:$G$524,7,TRUE)), (VLOOKUP(3,Tablas!$A$522:$G$524,7,TRUE)))))))))))), (IF($F$20=3,(IF(3-$F$22=0,0, (IF(3-$F$22=1,(VLOOKUP(1,Tablas!$A$522:$G$524,7,TRUE)), (IF(3-$F$22=2, (VLOOKUP(2,Tablas!$A$522:$G$524,7,TRUE)), (VLOOKUP(3,Tablas!$A$522:$G$524,7,TRUE)))))))), (IF($F$20=2,(IF(2-$F$22=0, 0, (IF(2-$F$22=1,(VLOOKUP(1,Tablas!$A$522:$G$524,7,TRUE)), (IF(2-$F$22=2, (VLOOKUP(2,Tablas!$A$522:$G$524,7,TRUE)), 0)))))), (IF($F$20=1,(IF(1-$F$22=0, 0, (IF(1-$F$22=1,(VLOOKUP(1,Tablas!$A$522:$G$524,7,TRUE)),0)))),0))))))))))))))))))) -> 563.3264
E43: Total de Prima neta | G43: =SUM(G40:G42) -> 8734.2304 | H43: =SUM(H40:H42) -> 7656.5496 | I43: =SUM(I40:I42) -> 6326.8856 | J43: =SUM(J40:J42) -> 5486.348 | K43: =SUM(K40:K42) -> 4255.8152
E44: Ajuste por variante con coaseguro fuera del país de residencia | G44: =IF('INGRESO DE DATOS'!$H$20,G43*-25%,0) -> 0 | H44: =IF('INGRESO DE DATOS'!$H$20,H43*-25%,0) -> 0 | I44: =IF('INGRESO DE DATOS'!$H$20,I43*-25%,0) -> 0 | J44: =IF('INGRESO DE DATOS'!$H$20,J43*-25%,0) -> 0 | K44: =IF('INGRESO DE DATOS'!$H$20,K43*-25%,0) -> 0
E45: Tarifa administrativa anual | G45: 75 | H45: 75 | I45: 75 | J45: 75 | K45: 75
E46: IVA (12%) | G46: =(G43+G45)*0% -> 0 | H46: =(H43+H45)*0% -> 0 | I46: 0 | J46: 0 | K46: 0
E47: TOTAL de primera cuota | G47: =SUM(G43:G46) -> 8809.2304 | H47: =SUM(H43:H46) -> 7731.5496 | I47: =SUM(I43:I46) -> 6401.8856 | J47: =SUM(J43:J46) -> 5561.348 | K47: =SUM(K43:K46) -> 4330.8152
E48: Costo de segunda cuota | G48: =SUM(G43:G44) -> 8734.2304 | H48: =SUM(H43:H44) -> 7656.5496 | I48: 6326.8856 | J48: 5486.348 | K48: 4255.8152
E49: TOTAL ANUAL | G49: =G47+G48 -> 17543.4608 | H49: =H47+H48 -> 15388.0992 | I49: 12728.7712 | J49: =J47+J48 -> 11047.696 | K49: 8586.6304
E50: Ahorros en tarifas de prima para niños | G50: =IF($F$18=1,IF($F$20=0,0,IF($F$22=0,0,IF($F$22=1,(VLOOKUP(1,Tablas!$A$522:$G$524,3,TRUE)),(VLOOKUP(2,Tablas!$A$522:$G$524,3,TRUE))))), IF($F$20=0,0,IF($F$22=0,0,IF($F$22=1,(VLOOKUP(1,Tablas!$A$522:$G$524,3,TRUE)),IF($F$22=2,(VLOOKUP(2,Tablas!$A$522:$G$524,3,TRUE)), (VLOOKUP(3,Tablas!$A$522:$G$524,3,TRUE))))))) -> 1126.6528 | H50: =IF($F$18=1,IF($F$20=0,0,IF($F$22=0,0,IF($F$22=1,(VLOOKUP(1,Tablas!$A$522:$G$524,4,TRUE)),(VLOOKUP(2,Tablas!$A$522:$G$524,4,TRUE))))), IF($F$20=0,0,IF($F$22=0,0,IF($F$22=1,(VLOOKUP(1,Tablas!$A$522:$G$524,4,TRUE)),IF($F$22=2,(VLOOKUP(2,Tablas!$A$522:$G$524,4,TRUE)), (VLOOKUP(3,Tablas!$A$522:$G$524,4,TRUE))))))) -> 987.7504 | I50: =IF($F$18=1,IF($F$20=0,0,IF($F$22=0,0,IF($F$22=1,(VLOOKUP(1,Tablas!$A$522:$G$524,5,TRUE)),(VLOOKUP(2,Tablas!$A$522:$G$524,5,TRUE))))), IF($F$20=0,0,IF($F$22=0,0,IF($F$22=1,(VLOOKUP(1,Tablas!$A$522:$G$524,5,TRUE)),IF($F$22=2,(VLOOKUP(2,Tablas!$A$522:$G$524,5,TRUE)), (VLOOKUP(3,Tablas!$A$522:$G$524,5,TRUE))))))) -> 836.6792 | J50: =IF($F$18=1,IF($F$20=0,0,IF($F$22=0,0,IF($F$22=1,(VLOOKUP(1,Tablas!$A$522:$G$524,6,TRUE)),(VLOOKUP(2,Tablas!$A$522:$G$524,6,TRUE))))), IF($F$20=0,0,IF($F$22=0,0,IF($F$22=1,(VLOOKUP(1,Tablas!$A$522:$G$524,6,TRUE)),IF($F$22=2,(VLOOKUP(2,Tablas!$A$522:$G$524,6,TRUE)), (VLOOKUP(3,Tablas!$A$522:$G$524,6,TRUE))))))) -> 725.9728 | K50: =IF($F$18=1,IF($F$20=0,0,IF($F$22=0,0,IF($F$22=1,(VLOOKUP(1,Tablas!$A$522:$G$524,7,TRUE)),(VLOOKUP(2,Tablas!$A$522:$G$524,7,TRUE))))), IF($F$20=0,0,IF($F$22=0,0,IF($F$22=1,(VLOOKUP(1,Tablas!$A$522:$G$524,7,TRUE)),IF($F$22=2,(VLOOKUP(2,Tablas!$A$522:$G$524,7,TRUE)), (VLOOKUP(3,Tablas!$A$522:$G$524,7,TRUE))))))) -> 563.3264
E52: Tarifas trimestrales
E53: Prima para Asegurado Titular | G53: =VLOOKUP($J$18,Tablas!$A$680:$G$746,3,TRUE) -> 1645.028 | H53: =VLOOKUP($J$18,Tablas!$A$680:$G$746,4,TRUE) -> 1441.902 | I53: =VLOOKUP($J$18,Tablas!$A$680:$G$746,5,TRUE) -> 1196.118 | J53: =VLOOKUP($J$18,Tablas!$A$680:$G$746,6,TRUE) -> 1037.036 | K53: =VLOOKUP($J$18,Tablas!$A$680:$G$746,7,TRUE) -> 804.496
E54: Prima para conyuge | G54: =IF($F$18=1,0,(VLOOKUP($J$20,Tablas!$A$680:$G$746,3,TRUE))) -> 2302.3 | H54: =IF($F$18=1,0,(VLOOKUP($J$20,Tablas!$A$680:$G$746,4,TRUE))) -> 2018.324 | I54: =IF($F$18=1,0,(VLOOKUP($J$20,Tablas!$A$680:$G$746,5,TRUE))) -> 1652.574 | J54: =IF($F$18=1,0,(VLOOKUP($J$20,Tablas!$A$680:$G$746,6,TRUE))) -> 1432.97 | K54: =IF($F$18=1,0,(VLOOKUP($J$20,Tablas!$A$680:$G$746,7,TRUE))) -> 1111.418
E55: Prima para hijo (s) | G55: =IF($F$18=1, (IF($F$20=0, 0, (IF($F$22>$F$20, (VLOOKUP($F$20,Tablas!$A$747:$G$749,3,TRUE)), (IF($F$20>4,(IF($F$22=0, (VLOOKUP(3,Tablas!$A$747:$G$749,3,TRUE)), (IF($F$22=1, (VLOOKUP(3,Tablas!$A$747:$G$749,3,TRUE)), (IF($F$22=2, (VLOOKUP(3,Tablas!$A$747:$G$749,3,TRUE)), (VLOOKUP(3,Tablas!$A$747:$G$749,3,TRUE)))))))), (IF($F$20=4,(IF(4-$F$22=0,(VLOOKUP(2,Tablas!$A$747:$G$749,3,TRUE)), (IF(4-$F$22=1,(VLOOKUP(2,Tablas!$A$747:$G$749,3,TRUE)), (IF(4-$F$22=2, (VLOOKUP(2,Tablas!$A$747:$G$749,3,TRUE)), (VLOOKUP(3,Tablas!$A$747:$G$749,3,TRUE)))))))), (IF($F$20=3,(IF(3-$F$22=0,(VLOOKUP(1,Tablas!$A$747:$G$749,3,TRUE)), (IF(3-$F$22=1,(VLOOKUP(1,Tablas!$A$747:$G$749,3,TRUE)), (IF(3-$F$22=2, (VLOOKUP(2,Tablas!$A$747:$G$749,3,TRUE)), (VLOOKUP(3,Tablas!$A$747:$G$749,3,TRUE)))))))), (IF($F$20=2,(IF(2-$F$22=0, 0, (IF(2-$F$22=1,(VLOOKUP(1,Tablas!$A$747:$G$749,3,TRUE)), (IF(2-$F$22=2, (VLOOKUP(2,Tablas!$A$747:$G$749,3,TRUE)), 0)))))), (IF($F$20=1,(IF(1-$F$22=0, 0, (IF(1-$F$22=1,(VLOOKUP(1,Tablas!$A$747:$G$749,3,TRUE)),0)))),0)))))))))))))), (IF($F$20=0, 0, (IF($F$22>$F$20, (VLOOKUP($F$20,Tablas!$A$747:$G$749,3,TRUE)), (IF($F$20=4,(IF(4-$F$22=0, 0, (IF(4-$F$22=1, (VLOOKUP(1,Tablas!$A$747:$G$749,3,TRUE)), (IF(4-$F$22=2, (VLOOKUP(2,Tablas!$A$747:$G$749,3,TRUE)), (IF(4-$F$22=3, (VLOOKUP(3,Tablas!$A$747:$G$749,3,TRUE)), (IF(4-$F$22=4, (VLOOKUP(3,Tablas!$A$747:$G$749,3,TRUE)), 0)))))))))), (IF($F$20=5,(IF(5-$F$22=0, (VLOOKUP(1,Tablas!$A$747:$G$749,3,TRUE)), (IF(5-$F$22=1, (VLOOKUP(1,Tablas!$A$747:$G$749,3,TRUE)), (IF(5-$F$22=2, (VLOOKUP(2,Tablas!$A$747:$G$749,3,TRUE)), (IF(5-$F$22=3, (VLOOKUP(3,Tablas!$A$747:$G$749,3,TRUE)), (IF(5-$F$22=4, (VLOOKUP(3,Tablas!$A$747:$G$749,3,TRUE)), (VLOOKUP(3,Tablas!$A$747:$G$749,3,TRUE)))))))))))), (IF($F$20=6,(IF(6-$F$22=0, (VLOOKUP(2,Tablas!$A$747:$G$749,3,TRUE)), (IF(6-$F$22=1, (VLOOKUP(2,Tablas!$A$747:$G$749,3,TRUE)), (IF(6-$F$22=2, (VLOOKUP(2,Tablas!$A$747:$G$749,3,TRUE)), (IF(6-$F$22=3, (VLOOKUP(3,Tablas!$A$747:$G$749,3,TRUE)), (IF(6-$F$22=4, (VLOOKUP(3,Tablas!$A$747:$G$749,3,TRUE)), (VLOOKUP(3,Tablas!$A$747:$G$749,3,TRUE)))))))))))), (IF($F$20>6,(IF(7-$F$22=0, (VLOOKUP(3,Tablas!$A$747:$G$749,3,TRUE)), (IF(7-$F$22=1, (VLOOKUP(3,Tablas!$A$747:$G$749,3,TRUE)), (IF(7-$F$22=2, (VLOOKUP(3,Tablas!$A$747:$G$749,3,TRUE)), (IF(7-$F$22=3, (VLOOKUP(3,Tablas!$A$747:$G$749,3,TRUE)), (IF(7-$F$22=4, (VLOOKUP(3,Tablas!$A$747:$G$749,3,TRUE)), (VLOOKUP(3,Tablas!$A$747:$G$749,3,TRUE)))))))))))), (IF($F$20=3,(IF(3-$F$22=0,0, (IF(3-$F$22=1,(VLOOKUP(1,Tablas!$A$747:$G$749,3,TRUE)), (IF(3-$F$22=2, (VLOOKUP(2,Tablas!$A$747:$G$749,3,TRUE)), (VLOOKUP(3,Tablas!$A$747:$G$749,3,TRUE)))))))), (IF($F$20=2,(IF(2-$F$22=0, 0, (IF(2-$F$22=1,(VLOOKUP(1,Tablas!$A$747:$G$749,3,TRUE)), (IF(2-$F$22=2, (VLOOKUP(2,Tablas!$A$747:$G$749,3,TRUE)), 0)))))), (IF($F$20=1,(IF(1-$F$22=0, 0, (IF(1-$F$22=1,(VLOOKUP(1,Tablas!$A$747:$G$749,3,TRUE)),0)))),0))))))))))))))))))) -> 584.584 | H55: =IF($F$18=1, (IF($F$20=0, 0, (IF($F$22>$F$20, (VLOOKUP($F$20,Tablas!$A$747:$G$749,4,TRUE)), (IF($F$20>4,(IF($F$22=0, (VLOOKUP(3,Tablas!$A$747:$G$749,4,TRUE)), (IF($F$22=1, (VLOOKUP(3,Tablas!$A$747:$G$749,4,TRUE)), (IF($F$22=2, (VLOOKUP(3,Tablas!$A$747:$G$749,4,TRUE)), (VLOOKUP(3,Tablas!$A$747:$G$749,4,TRUE)))))))), (IF($F$20=4,(IF(4-$F$22=0,(VLOOKUP(2,Tablas!$A$747:$G$749,4,TRUE)), (IF(4-$F$22=1,(VLOOKUP(2,Tablas!$A$747:$G$749,4,TRUE)), (IF(4-$F$22=2, (VLOOKUP(2,Tablas!$A$747:$G$749,4,TRUE)), (VLOOKUP(3,Tablas!$A$747:$G$749,4,TRUE)))))))), (IF($F$20=3,(IF(3-$F$22=0,(VLOOKUP(1,Tablas!$A$747:$G$749,4,TRUE)), (IF(3-$F$22=1,(VLOOKUP(1,Tablas!$A$747:$G$749,4,TRUE)), (IF(3-$F$22=2, (VLOOKUP(2,Tablas!$A$747:$G$749,4,TRUE)), (VLOOKUP(3,Tablas!$A$747:$G$749,4,TRUE)))))))), (IF($F$20=2,(IF(2-$F$22=0, 0, (IF(2-$F$22=1,(VLOOKUP(1,Tablas!$A$747:$G$749,4,TRUE)), (IF(2-$F$22=2, (VLOOKUP(2,Tablas!$A$747:$G$749,4,TRUE)), 0)))))), (IF($F$20=1,(IF(1-$F$22=0, 0, (IF(1-$F$22=1,(VLOOKUP(1,Tablas!$A$747:$G$749,4,TRUE)),0)))),0)))))))))))))), (IF($F$20=0, 0, (IF($F$22>$F$20, (VLOOKUP($F$20,Tablas!$A$747:$G$749,4,TRUE)), (IF($F$20=4,(IF(4-$F$22=0, 0, (IF(4-$F$22=1, (VLOOKUP(1,Tablas!$A$747:$G$749,4,TRUE)), (IF(4-$F$22=2, (VLOOKUP(2,Tablas!$A$747:$G$749,4,TRUE)), (IF(4-$F$22=3, (VLOOKUP(3,Tablas!$A$747:$G$749,4,TRUE)), (IF(4-$F$22=4, (VLOOKUP(3,Tablas!$A$747:$G$749,4,TRUE)), 0)))))))))), (IF($F$20=5,(IF(5-$F$22=0, (VLOOKUP(1,Tablas!$A$747:$G$749,4,TRUE)), (IF(5-$F$22=1, (VLOOKUP(1,Tablas!$A$747:$G$749,4,TRUE)), (IF(5-$F$22=2, (VLOOKUP(2,Tablas!$A$747:$G$749,4,TRUE)), (IF(5-$F$22=3, (VLOOKUP(3,Tablas!$A$747:$G$749,4,TRUE)), (IF(5-$F$22=4, (VLOOKUP(3,Tablas!$A$747:$G$749,4,TRUE)), (VLOOKUP(3,Tablas!$A$747:$G$749,4,TRUE)))))))))))), (IF($F$20=6,(IF(6-$F$22=0, (VLOOKUP(2,Tablas!$A$747:$G$749,4,TRUE)), (IF(6-$F$22=1, (VLOOKUP(2,Tablas!$A$747:$G$749,4,TRUE)), (IF(6-$F$22=2, (VLOOKUP(2,Tablas!$A$747:$G$749,4,TRUE)), (IF(6-$F$22=3, (VLOOKUP(3,Tablas!$A$747:$G$749,4,TRUE)), (IF(6-$F$22=4, (VLOOKUP(3,Tablas!$A$747:$G$749,4,TRUE)), (VLOOKUP(3,Tablas!$A$747:$G$749,4,TRUE)))))))))))), (IF($F$20>6,(IF(7-$F$22=0, (VLOOKUP(3,Tablas!$A$747:$G$749,4,TRUE)), (IF(7-$F$22=1, (VLOOKUP(3,Tablas!$A$747:$G$749,4,TRUE)), (IF(7-$F$22=2, (VLOOKUP(3,Tablas!$A$747:$G$749,4,TRUE)), (IF(7-$F$22=3, (VLOOKUP(3,Tablas!$A$747:$G$749,4,TRUE)), (IF(7-$F$22=4, (VLOOKUP(3,Tablas!$A$747:$G$749,4,TRUE)), (VLOOKUP(3,Tablas!$A$747:$G$749,4,TRUE)))))))))))), (IF($F$20=3,(IF(3-$F$22=0,0, (IF(3-$F$22=1,(VLOOKUP(1,Tablas!$A$747:$G$749,4,TRUE)), (IF(3-$F$22=2, (VLOOKUP(2,Tablas!$A$747:$G$749,4,TRUE)), (VLOOKUP(3,Tablas!$A$747:$G$749,4,TRUE)))))))), (IF($F$20=2,(IF(2-$F$22=0, 0, (IF(2-$F$22=1,(VLOOKUP(1,Tablas!$A$747:$G$749,4,TRUE)), (IF(2-$F$22=2, (VLOOKUP(2,Tablas!$A$747:$G$749,4,TRUE)), 0)))))), (IF($F$20=1,(IF(1-$F$22=0, 0, (IF(1-$F$22=1,(VLOOKUP(1,Tablas!$A$747:$G$749,4,TRUE)),0)))),0))))))))))))))))))) -> 512.512 | I55: =IF($F$18=1, (IF($F$20=0, 0, (IF($F$22>$F$20, (VLOOKUP($F$20,Tablas!$A$747:$G$749,5,TRUE)), (IF($F$20>4,(IF($F$22=0, (VLOOKUP(3,Tablas!$A$747:$G$749,5,TRUE)), (IF($F$22=1, (VLOOKUP(3,Tablas!$A$747:$G$749,5,TRUE)), (IF($F$22=2, (VLOOKUP(3,Tablas!$A$747:$G$749,5,TRUE)), (VLOOKUP(3,Tablas!$A$747:$G$749,5,TRUE)))))))), (IF($F$20=4,(IF(4-$F$22=0,(VLOOKUP(2,Tablas!$A$747:$G$749,5,TRUE)), (IF(4-$F$22=1,(VLOOKUP(2,Tablas!$A$747:$G$749,5,TRUE)), (IF(4-$F$22=2, (VLOOKUP(2,Tablas!$A$747:$G$749,5,TRUE)), (VLOOKUP(3,Tablas!$A$747:$G$749,5,TRUE)))))))), (IF($F$20=3,(IF(3-$F$22=0,(VLOOKUP(1,Tablas!$A$747:$G$749,5,TRUE)), (IF(3-$F$22=1,(VLOOKUP(1,Tablas!$A$747:$G$749,5,TRUE)), (IF(3-$F$22=2, (VLOOKUP(2,Tablas!$A$747:$G$749,5,TRUE)), (VLOOKUP(3,Tablas!$A$747:$G$749,5,TRUE)))))))), (IF($F$20=2,(IF(2-$F$22=0, 0, (IF(2-$F$22=1,(VLOOKUP(1,Tablas!$A$747:$G$749,5,TRUE)), (IF(2-$F$22=2, (VLOOKUP(2,Tablas!$A$747:$G$749,5,TRUE)), 0)))))), (IF($F$20=1,(IF(1-$F$22=0, 0, (IF(1-$F$22=1,(VLOOKUP(1,Tablas!$A$747:$G$749,5,TRUE)),0)))),0)))))))))))))), (IF($F$20=0, 0, (IF($F$22>$F$20, (VLOOKUP($F$20,Tablas!$A$747:$G$749,5,TRUE)), (IF($F$20=4,(IF(4-$F$22=0, 0, (IF(4-$F$22=1, (VLOOKUP(1,Tablas!$A$747:$G$749,5,TRUE)), (IF(4-$F$22=2, (VLOOKUP(2,Tablas!$A$747:$G$749,5,TRUE)), (IF(4-$F$22=3, (VLOOKUP(3,Tablas!$A$747:$G$749,5,TRUE)), (IF(4-$F$22=4, (VLOOKUP(3,Tablas!$A$747:$G$749,5,TRUE)), 0)))))))))), (IF($F$20=5,(IF(5-$F$22=0, (VLOOKUP(1,Tablas!$A$747:$G$749,5,TRUE)), (IF(5-$F$22=1, (VLOOKUP(1,Tablas!$A$747:$G$749,5,TRUE)), (IF(5-$F$22=2, (VLOOKUP(2,Tablas!$A$747:$G$749,5,TRUE)), (IF(5-$F$22=3, (VLOOKUP(3,Tablas!$A$747:$G$749,5,TRUE)), (IF(5-$F$22=4, (VLOOKUP(3,Tablas!$A$747:$G$749,5,TRUE)), (VLOOKUP(3,Tablas!$A$747:$G$749,5,TRUE)))))))))))), (IF($F$20=6,(IF(6-$F$22=0, (VLOOKUP(2,Tablas!$A$747:$G$749,5,TRUE)), (IF(6-$F$22=1, (VLOOKUP(2,Tablas!$A$747:$G$749,5,TRUE)), (IF(6-$F$22=2, (VLOOKUP(2,Tablas!$A$747:$G$749,5,TRUE)), (IF(6-$F$22=3, (VLOOKUP(3,Tablas!$A$747:$G$749,5,TRUE)), (IF(6-$F$22=4, (VLOOKUP(3,Tablas!$A$747:$G$749,5,TRUE)), (VLOOKUP(3,Tablas!$A$747:$G$749,5,TRUE)))))))))))), (IF($F$20>6,(IF(7-$F$22=0, (VLOOKUP(3,Tablas!$A$747:$G$749,5,TRUE)), (IF(7-$F$22=1, (VLOOKUP(3,Tablas!$A$747:$G$749,5,TRUE)), (IF(7-$F$22=2, (VLOOKUP(3,Tablas!$A$747:$G$749,5,TRUE)), (IF(7-$F$22=3, (VLOOKUP(3,Tablas!$A$747:$G$749,5,TRUE)), (IF(7-$F$22=4, (VLOOKUP(3,Tablas!$A$747:$G$749,5,TRUE)), (VLOOKUP(3,Tablas!$A$747:$G$749,5,TRUE)))))))))))), (IF($F$20=3,(IF(3-$F$22=0,0, (IF(3-$F$22=1,(VLOOKUP(1,Tablas!$A$747:$G$749,5,TRUE)), (IF(3-$F$22=2, (VLOOKUP(2,Tablas!$A$747:$G$749,5,TRUE)), (VLOOKUP(3,Tablas!$A$747:$G$749,5,TRUE)))))))), (IF($F$20=2,(IF(2-$F$22=0, 0, (IF(2-$F$22=1,(VLOOKUP(1,Tablas!$A$747:$G$749,5,TRUE)), (IF(2-$F$22=2, (VLOOKUP(2,Tablas!$A$747:$G$749,5,TRUE)), 0)))))), (IF($F$20=1,(IF(1-$F$22=0, 0, (IF(1-$F$22=1,(VLOOKUP(1,Tablas!$A$747:$G$749,5,TRUE)),0)))),0))))))))))))))))))) -> 434.126 | J55: =IF($F$18=1, (IF($F$20=0, 0, (IF($F$22>$F$20, (VLOOKUP($F$20,Tablas!$A$747:$G$749,6,TRUE)), (IF($F$20>4,(IF($F$22=0, (VLOOKUP(3,Tablas!$A$747:$G$749,6,TRUE)), (IF($F$22=1, (VLOOKUP(3,Tablas!$A$747:$G$749,6,TRUE)), (IF($F$22=2, (VLOOKUP(3,Tablas!$A$747:$G$749,6,TRUE)), (VLOOKUP(3,Tablas!$A$747:$G$749,6,TRUE)))))))), (IF($F$20=4,(IF(4-$F$22=0,(VLOOKUP(2,Tablas!$A$747:$G$749,6,TRUE)), (IF(4-$F$22=1,(VLOOKUP(2,Tablas!$A$747:$G$749,6,TRUE)), (IF(4-$F$22=2, (VLOOKUP(2,Tablas!$A$747:$G$749,6,TRUE)), (VLOOKUP(3,Tablas!$A$747:$G$749,6,TRUE)))))))), (IF($F$20=3,(IF(3-$F$22=0,(VLOOKUP(1,Tablas!$A$747:$G$749,6,TRUE)), (IF(3-$F$22=1,(VLOOKUP(1,Tablas!$A$747:$G$749,6,TRUE)), (IF(3-$F$22=2, (VLOOKUP(2,Tablas!$A$747:$G$749,6,TRUE)), (VLOOKUP(3,Tablas!$A$747:$G$749,6,TRUE)))))))), (IF($F$20=2,(IF(2-$F$22=0, 0, (IF(2-$F$22=1,(VLOOKUP(1,Tablas!$A$747:$G$749,6,TRUE)), (IF(2-$F$22=2, (VLOOKUP(2,Tablas!$A$747:$G$749,6,TRUE)), 0)))))), (IF($F$20=1,(IF(1-$F$22=0, 0, (IF(1-$F$22=1,(VLOOKUP(1,Tablas!$A$747:$G$749,6,TRUE)),0)))),0)))))))))))))), (IF($F$20=0, 0, (IF($F$22>$F$20, (VLOOKUP($F$20,Tablas!$A$747:$G$749,6,TRUE)), (IF($F$20=4,(IF(4-$F$22=0, 0, (IF(4-$F$22=1, (VLOOKUP(1,Tablas!$A$747:$G$749,6,TRUE)), (IF(4-$F$22=2, (VLOOKUP(2,Tablas!$A$747:$G$749,6,TRUE)), (IF(4-$F$22=3, (VLOOKUP(3,Tablas!$A$747:$G$749,6,TRUE)), (IF(4-$F$22=4, (VLOOKUP(3,Tablas!$A$747:$G$749,6,TRUE)), 0)))))))))), (IF($F$20=5,(IF(5-$F$22=0, (VLOOKUP(1,Tablas!$A$747:$G$749,6,TRUE)), (IF(5-$F$22=1, (VLOOKUP(1,Tablas!$A$747:$G$749,6,TRUE)), (IF(5-$F$22=2, (VLOOKUP(2,Tablas!$A$747:$G$749,6,TRUE)), (IF(5-$F$22=3, (VLOOKUP(3,Tablas!$A$747:$G$749,6,TRUE)), (IF(5-$F$22=4, (VLOOKUP(3,Tablas!$A$747:$G$749,6,TRUE)), (VLOOKUP(3,Tablas!$A$747:$G$749,6,TRUE)))))))))))), (IF($F$20=6,(IF(6-$F$22=0, (VLOOKUP(2,Tablas!$A$747:$G$749,6,TRUE)), (IF(6-$F$22=1, (VLOOKUP(2,Tablas!$A$747:$G$749,6,TRUE)), (IF(6-$F$22=2, (VLOOKUP(2,Tablas!$A$747:$G$749,6,TRUE)), (IF(6-$F$22=3, (VLOOKUP(3,Tablas!$A$747:$G$749,6,TRUE)), (IF(6-$F$22=4, (VLOOKUP(3,Tablas!$A$747:$G$749,6,TRUE)), (VLOOKUP(3,Tablas!$A$747:$G$749,6,TRUE)))))))))))), (IF($F$20>6,(IF(7-$F$22=0, (VLOOKUP(3,Tablas!$A$747:$G$749,6,TRUE)), (IF(7-$F$22=1, (VLOOKUP(3,Tablas!$A$747:$G$749,6,TRUE)), (IF(7-$F$22=2, (VLOOKUP(3,Tablas!$A$747:$G$749,6,TRUE)), (IF(7-$F$22=3, (VLOOKUP(3,Tablas!$A$747:$G$749,6,TRUE)), (IF(7-$F$22=4, (VLOOKUP(3,Tablas!$A$747:$G$749,6,TRUE)), (VLOOKUP(3,Tablas!$A$747:$G$749,6,TRUE)))))))))))), (IF($F$20=3,(IF(3-$F$22=0,0, (IF(3-$F$22=1,(VLOOKUP(1,Tablas!$A$747:$G$749,6,TRUE)), (IF(3-$F$22=2, (VLOOKUP(2,Tablas!$A$747:$G$749,6,TRUE)), (VLOOKUP(3,Tablas!$A$747:$G$749,6,TRUE)))))))), (IF($F$20=2,(IF(2-$F$22=0, 0, (IF(2-$F$22=1,(VLOOKUP(1,Tablas!$A$747:$G$749,6,TRUE)), (IF(2-$F$22=2, (VLOOKUP(2,Tablas!$A$747:$G$749,6,TRUE)), 0)))))), (IF($F$20=1,(IF(1-$F$22=0, 0, (IF(1-$F$22=1,(VLOOKUP(1,Tablas!$A$747:$G$749,6,TRUE)),0)))),0))))))))))))))))))) -> 376.684 | K55: =IF($F$18=1, (IF($F$20=0, 0, (IF($F$22>$F$20, (VLOOKUP($F$20,Tablas!$A$747:$G$749,7,TRUE)), (IF($F$20>4,(IF($F$22=0, (VLOOKUP(3,Tablas!$A$747:$G$749,7,TRUE)), (IF($F$22=1, (VLOOKUP(3,Tablas!$A$747:$G$749,7,TRUE)), (IF($F$22=2, (VLOOKUP(3,Tablas!$A$747:$G$749,7,TRUE)), (VLOOKUP(3,Tablas!$A$747:$G$749,7,TRUE)))))))), (IF($F$20=4,(IF(4-$F$22=0,(VLOOKUP(2,Tablas!$A$747:$G$749,7,TRUE)), (IF(4-$F$22=1,(VLOOKUP(2,Tablas!$A$747:$G$749,7,TRUE)), (IF(4-$F$22=2, (VLOOKUP(2,Tablas!$A$747:$G$749,7,TRUE)), (VLOOKUP(3,Tablas!$A$747:$G$749,7,TRUE)))))))), (IF($F$20=3,(IF(3-$F$22=0,(VLOOKUP(1,Tablas!$A$747:$G$749,7,TRUE)), (IF(3-$F$22=1,(VLOOKUP(1,Tablas!$A$747:$G$749,7,TRUE)), (IF(3-$F$22=2, (VLOOKUP(2,Tablas!$A$747:$G$749,7,TRUE)), (VLOOKUP(3,Tablas!$A$747:$G$749,7,TRUE)))))))), (IF($F$20=2,(IF(2-$F$22=0, 0, (IF(2-$F$22=1,(VLOOKUP(1,Tablas!$A$747:$G$749,7,TRUE)), (IF(2-$F$22=2, (VLOOKUP(2,Tablas!$A$747:$G$749,7,TRUE)), 0)))))), (IF($F$20=1,(IF(1-$F$22=0, 0, (IF(1-$F$22=1,(VLOOKUP(1,Tablas!$A$747:$G$749,7,TRUE)),0)))),0)))))))))))))), (IF($F$20=0, 0, (IF($F$22>$F$20, (VLOOKUP($F$20,Tablas!$A$747:$G$749,7,TRUE)), (IF($F$20=4,(IF(4-$F$22=0, 0, (IF(4-$F$22=1, (VLOOKUP(1,Tablas!$A$747:$G$749,7,TRUE)), (IF(4-$F$22=2, (VLOOKUP(2,Tablas!$A$747:$G$749,7,TRUE)), (IF(4-$F$22=3, (VLOOKUP(3,Tablas!$A$747:$G$749,7,TRUE)), (IF(4-$F$22=4, (VLOOKUP(3,Tablas!$A$747:$G$749,7,TRUE)), 0)))))))))), (IF($F$20=5,(IF(5-$F$22=0, (VLOOKUP(1,Tablas!$A$747:$G$749,7,TRUE)), (IF(5-$F$22=1, (VLOOKUP(1,Tablas!$A$747:$G$749,7,TRUE)), (IF(5-$F$22=2, (VLOOKUP(2,Tablas!$A$747:$G$749,7,TRUE)), (IF(5-$F$22=3, (VLOOKUP(3,Tablas!$A$747:$G$749,7,TRUE)), (IF(5-$F$22=4, (VLOOKUP(3,Tablas!$A$747:$G$749,7,TRUE)), (VLOOKUP(3,Tablas!$A$747:$G$749,7,TRUE)))))))))))), (IF($F$20=6,(IF(6-$F$22=0, (VLOOKUP(2,Tablas!$A$747:$G$749,7,TRUE)), (IF(6-$F$22=1, (VLOOKUP(2,Tablas!$A$747:$G$749,7,TRUE)), (IF(6-$F$22=2, (VLOOKUP(2,Tablas!$A$747:$G$749,7,TRUE)), (IF(6-$F$22=3, (VLOOKUP(3,Tablas!$A$747:$G$749,7,TRUE)), (IF(6-$F$22=4, (VLOOKUP(3,Tablas!$A$747:$G$749,7,TRUE)), (VLOOKUP(3,Tablas!$A$747:$G$749,7,TRUE)))))))))))), (IF($F$20>6,(IF(7-$F$22=0, (VLOOKUP(3,Tablas!$A$747:$G$749,7,TRUE)), (IF(7-$F$22=1, (VLOOKUP(3,Tablas!$A$747:$G$749,7,TRUE)), (IF(7-$F$22=2, (VLOOKUP(3,Tablas!$A$747:$G$749,7,TRUE)), (IF(7-$F$22=3, (VLOOKUP(3,Tablas!$A$747:$G$749,7,TRUE)), (IF(7-$F$22=4, (VLOOKUP(3,Tablas!$A$747:$G$749,7,TRUE)), (VLOOKUP(3,Tablas!$A$747:$G$749,7,TRUE)))))))))))), (IF($F$20=3,(IF(3-$F$22=0,0, (IF(3-$F$22=1,(VLOOKUP(1,Tablas!$A$747:$G$749,7,TRUE)), (IF(3-$F$22=2, (VLOOKUP(2,Tablas!$A$747:$G$749,7,TRUE)), (VLOOKUP(3,Tablas!$A$747:$G$749,7,TRUE)))))))), (IF($F$20=2,(IF(2-$F$22=0, 0, (IF(2-$F$22=1,(VLOOKUP(1,Tablas!$A$747:$G$749,7,TRUE)), (IF(2-$F$22=2, (VLOOKUP(2,Tablas!$A$747:$G$749,7,TRUE)), 0)))))), (IF($F$20=1,(IF(1-$F$22=0, 0, (IF(1-$F$22=1,(VLOOKUP(1,Tablas!$A$747:$G$749,7,TRUE)),0)))),0))))))))))))))))))) -> 292.292
E56: Total de Prima neta | G56: =SUM(G53:G55) -> 4531.912 | H56: =SUM(H53:H55) -> 3972.738 | I56: =SUM(I53:I55) -> 3282.818 | J56: =SUM(J53:J55) -> 2846.69 | K56: =SUM(K53:K55) -> 2208.206
E57: Ajuste por variante con coaseguro fuera del país de residencia | G57: =IF('INGRESO DE DATOS'!$H$20,G56*-25%,0) -> 0 | H57: =IF('INGRESO DE DATOS'!$H$20,H56*-25%,0) -> 0 | I57: =IF('INGRESO DE DATOS'!$H$20,I56*-25%,0) -> 0 | J57: =IF('INGRESO DE DATOS'!$H$20,J56*-25%,0) -> 0 | K57: =IF('INGRESO DE DATOS'!$H$20,K56*-25%,0) -> 0
E58: Tarifa administrativa anual | G58: 75 | H58: 75 | I58: 75 | J58: 75 | K58: 75
E59: IVA (12%) | G59: =(G56+G58)*0% -> 0 | H59: =(H56+H58)*0% -> 0 | I59: 0 | J59: 0 | K59: 0
E60: TOTAL de primera cuota | G60: =SUM(G56:G59) -> 4606.912 | H60: =SUM(H56:H59) -> 4047.738 | I60: =SUM(I56:I59) -> 3357.818 | J60: =SUM(J56:J59) -> 2921.69 | K60: =SUM(K56:K59) -> 2283.206
E61: Costo de tarifa trimestral 2 a 4 | G61: =SUM(G56:G57) -> 4531.912 | H61: =SUM(H56:H57) -> 3972.738 | I61: 3282.818 | J61: 2846.69 | K61: 2208.206
E62: TOTAL ANUAL | G62: =G60+(G61*3) -> 18202.648 | H62: =H60+(H61*3) -> 15965.952 | I62: 13206.272 | J62: =J60+(J61*3) -> 11461.76 | K62: 8907.824
E63: Ahorros en tarifas de prima para niños | G63: =IF($F$18=1,IF($F$20=0,0,IF($F$22=0,0,IF($F$22=1,(VLOOKUP(1,Tablas!$A$747:$G$749,3,TRUE)),(VLOOKUP(2,Tablas!$A$747:$G$749,3,TRUE))))), IF($F$20=0,0,IF($F$22=0,0,IF($F$22=1,(VLOOKUP(1,Tablas!$A$747:$G$749,3,TRUE)),IF($F$22=2,(VLOOKUP(2,Tablas!$A$747:$G$749,3,TRUE)), (VLOOKUP(3,Tablas!$A$747:$G$749,3,TRUE))))))) -> 584.584 | H63: =IF($F$18=1,IF($F$20=0,0,IF($F$22=0,0,IF($F$22=1,(VLOOKUP(1,Tablas!$A$747:$G$749,4,TRUE)),(VLOOKUP(2,Tablas!$A$747:$G$749,4,TRUE))))), IF($F$20=0,0,IF($F$22=0,0,IF($F$22=1,(VLOOKUP(1,Tablas!$A$747:$G$749,4,TRUE)),IF($F$22=2,(VLOOKUP(2,Tablas!$A$747:$G$749,4,TRUE)), (VLOOKUP(3,Tablas!$A$747:$G$749,4,TRUE))))))) -> 512.512 | I63: =IF($F$18=1,IF($F$20=0,0,IF($F$22=0,0,IF($F$22=1,(VLOOKUP(1,Tablas!$A$747:$G$749,5,TRUE)),(VLOOKUP(2,Tablas!$A$747:$G$749,5,TRUE))))), IF($F$20=0,0,IF($F$22=0,0,IF($F$22=1,(VLOOKUP(1,Tablas!$A$747:$G$749,5,TRUE)),IF($F$22=2,(VLOOKUP(2,Tablas!$A$747:$G$749,5,TRUE)), (VLOOKUP(3,Tablas!$A$747:$G$749,5,TRUE))))))) -> 434.126 | J63: =IF($F$18=1,IF($F$20=0,0,IF($F$22=0,0,IF($F$22=1,(VLOOKUP(1,Tablas!$A$747:$G$749,6,TRUE)),(VLOOKUP(2,Tablas!$A$747:$G$749,6,TRUE))))), IF($F$20=0,0,IF($F$22=0,0,IF($F$22=1,(VLOOKUP(1,Tablas!$A$747:$G$749,6,TRUE)),IF($F$22=2,(VLOOKUP(2,Tablas!$A$747:$G$749,6,TRUE)), (VLOOKUP(3,Tablas!$A$747:$G$749,6,TRUE))))))) -> 376.684 | K63: =IF($F$18=1,IF($F$20=0,0,IF($F$22=0,0,IF($F$22=1,(VLOOKUP(1,Tablas!$A$747:$G$749,7,TRUE)),(VLOOKUP(2,Tablas!$A$747:$G$749,7,TRUE))))), IF($F$20=0,0,IF($F$22=0,0,IF($F$22=1,(VLOOKUP(1,Tablas!$A$747:$G$749,7,TRUE)),IF($F$22=2,(VLOOKUP(2,Tablas!$A$747:$G$749,7,TRUE)), (VLOOKUP(3,Tablas!$A$747:$G$749,7,TRUE))))))) -> 292.292
E65: Tarifas mensuales
E66: Prima para Asegurado Titular | G66: =VLOOKUP($J$18,Tablas!$A$80:$G$146,3,TRUE) -> 558.3125333 | H66: =VLOOKUP($J$18,Tablas!$A$80:$G$146,4,TRUE) -> 489.3728 | I66: =VLOOKUP($J$18,Tablas!$A$80:$G$146,5,TRUE) -> 405.9552 | J66: =VLOOKUP($J$18,Tablas!$A$80:$G$146,6,TRUE) -> 351.9637333 | K66: =VLOOKUP($J$18,Tablas!$A$80:$G$146,7,TRUE) -> 273.0410667
E67: Prima para conyuge | G67: =IF($F$18=1,0,(VLOOKUP($J$20,Tablas!$A$80:$G$146,3,TRUE))) -> 781.3866667 | H67: =IF($F$18=1,0,(VLOOKUP($J$20,Tablas!$A$80:$G$146,4,TRUE))) -> 685.0069333 | I67: =IF($F$18=1,0,(VLOOKUP($J$20,Tablas!$A$80:$G$146,5,TRUE))) -> 560.8736 | J67: =IF($F$18=1,0,(VLOOKUP($J$20,Tablas!$A$80:$G$146,6,TRUE))) -> 486.3413333 | K67: =IF($F$18=1,0,(VLOOKUP($J$20,Tablas!$A$80:$G$146,7,TRUE))) -> 377.2085333
E68: Prima para hijo (s) | G68: =IF($F$18=1, (IF($F$20=0, 0, (IF($F$22>$F$20, (VLOOKUP($F$20,Tablas!$A$147:$G$149,3,TRUE)), (IF($F$20>4,(IF($F$22=0, (VLOOKUP(3,Tablas!$A$147:$G$149,3,TRUE)), (IF($F$22=1, (VLOOKUP(3,Tablas!$A$147:$G$149,3,TRUE)), (IF($F$22=2, (VLOOKUP(3,Tablas!$A$147:$G$149,3,TRUE)), (VLOOKUP(3,Tablas!$A$147:$G$149,3,TRUE)))))))), (IF($F$20=4,(IF(4-$F$22=0,(VLOOKUP(2,Tablas!$A$147:$G$149,3,TRUE)), (IF(4-$F$22=1,(VLOOKUP(2,Tablas!$A$147:$G$149,3,TRUE)), (IF(4-$F$22=2, (VLOOKUP(2,Tablas!$A$147:$G$149,3,TRUE)), (VLOOKUP(3,Tablas!$A$147:$G$149,3,TRUE)))))))), (IF($F$20=3,(IF(3-$F$22=0,(VLOOKUP(1,Tablas!$A$147:$G$149,3,TRUE)), (IF(3-$F$22=1,(VLOOKUP(1,Tablas!$A$147:$G$149,3,TRUE)), (IF(3-$F$22=2, (VLOOKUP(2,Tablas!$A$147:$G$149,3,TRUE)), (VLOOKUP(3,Tablas!$A$147:$G$149,3,TRUE)))))))), (IF($F$20=2,(IF(2-$F$22=0, 0, (IF(2-$F$22=1,(VLOOKUP(1,Tablas!$A$147:$G$149,3,TRUE)), (IF(2-$F$22=2, (VLOOKUP(2,Tablas!$A$147:$G$149,3,TRUE)), 0)))))), (IF($F$20=1,(IF(1-$F$22=0, 0, (IF(1-$F$22=1,(VLOOKUP(1,Tablas!$A$147:$G$149,3,TRUE)),0)))),0)))))))))))))), (IF($F$20=0, 0, (IF($F$22>$F$20, (VLOOKUP($F$20,Tablas!$A$147:$G$149,3,TRUE)), (IF($F$20=4,(IF(4-$F$22=0, 0, (IF(4-$F$22=1, (VLOOKUP(1,Tablas!$A$147:$G$149,3,TRUE)), (IF(4-$F$22=2, (VLOOKUP(2,Tablas!$A$147:$G$149,3,TRUE)), (IF(4-$F$22=3, (VLOOKUP(3,Tablas!$A$147:$G$149,3,TRUE)), (IF(4-$F$22=4, (VLOOKUP(3,Tablas!$A$147:$G$149,3,TRUE)), 0)))))))))), (IF($F$20=5,(IF(5-$F$22=0, (VLOOKUP(1,Tablas!$A$147:$G$149,3,TRUE)), (IF(5-$F$22=1, (VLOOKUP(1,Tablas!$A$147:$G$149,3,TRUE)), (IF(5-$F$22=2, (VLOOKUP(2,Tablas!$A$147:$G$149,3,TRUE)), (IF(5-$F$22=3, (VLOOKUP(3,Tablas!$A$147:$G$149,3,TRUE)), (IF(5-$F$22=4, (VLOOKUP(3,Tablas!$A$147:$G$149,3,TRUE)), (VLOOKUP(3,Tablas!$A$147:$G$149,3,TRUE)))))))))))), (IF($F$20=6,(IF(6-$F$22=0, (VLOOKUP(2,Tablas!$A$147:$G$149,3,TRUE)), (IF(6-$F$22=1, (VLOOKUP(2,Tablas!$A$147:$G$149,3,TRUE)), (IF(6-$F$22=2, (VLOOKUP(2,Tablas!$A$147:$G$149,3,TRUE)), (IF(6-$F$22=3, (VLOOKUP(3,Tablas!$A$147:$G$149,3,TRUE)), (IF(6-$F$22=4, (VLOOKUP(3,Tablas!$A$147:$G$149,3,TRUE)), (VLOOKUP(3,Tablas!$A$147:$G$149,3,TRUE)))))))))))), (IF($F$20>6,(IF(7-$F$22=0, (VLOOKUP(3,Tablas!$A$147:$G$149,3,TRUE)), (IF(7-$F$22=1, (VLOOKUP(3,Tablas!$A$147:$G$149,3,TRUE)), (IF(7-$F$22=2, (VLOOKUP(3,Tablas!$A$147:$G$149,3,TRUE)), (IF(7-$F$22=3, (VLOOKUP(3,Tablas!$A$147:$G$149,3,TRUE)), (IF(7-$F$22=4, (VLOOKUP(3,Tablas!$A$147:$G$149,3,TRUE)), (VLOOKUP(3,Tablas!$A$147:$G$149,3,TRUE)))))))))))), (IF($F$20=3,(IF(3-$F$22=0,0, (IF(3-$F$22=1,(VLOOKUP(1,Tablas!$A$147:$G$149,3,TRUE)), (IF(3-$F$22=2, (VLOOKUP(2,Tablas!$A$147:$G$149,3,TRUE)), (VLOOKUP(3,Tablas!$A$147:$G$149,3,TRUE)))))))), (IF($F$20=2,(IF(2-$F$22=0, 0, (IF(2-$F$22=1,(VLOOKUP(1,Tablas!$A$147:$G$149,3,TRUE)), (IF(2-$F$22=2, (VLOOKUP(2,Tablas!$A$147:$G$149,3,TRUE)), 0)))))), (IF($F$20=1,(IF(1-$F$22=0, 0, (IF(1-$F$22=1,(VLOOKUP(1,Tablas!$A$147:$G$149,3,TRUE)),0)))),0))))))))))))))))))) -> 198.4042667 | H68: =IF($F$18=1, (IF($F$20=0, 0, (IF($F$22>$F$20, (VLOOKUP($F$20,Tablas!$A$147:$G$149,4,TRUE)), (IF($F$20>4,(IF($F$22=0, (VLOOKUP(3,Tablas!$A$147:$G$149,4,TRUE)), (IF($F$22=1, (VLOOKUP(3,Tablas!$A$147:$G$149,4,TRUE)), (IF($F$22=2, (VLOOKUP(3,Tablas!$A$147:$G$149,4,TRUE)), (VLOOKUP(3,Tablas!$A$147:$G$149,4,TRUE)))))))), (IF($F$20=4,(IF(4-$F$22=0,(VLOOKUP(2,Tablas!$A$147:$G$149,4,TRUE)), (IF(4-$F$22=1,(VLOOKUP(2,Tablas!$A$147:$G$149,4,TRUE)), (IF(4-$F$22=2, (VLOOKUP(2,Tablas!$A$147:$G$149,4,TRUE)), (VLOOKUP(3,Tablas!$A$147:$G$149,4,TRUE)))))))), (IF($F$20=3,(IF(3-$F$22=0,(VLOOKUP(1,Tablas!$A$147:$G$149,4,TRUE)), (IF(3-$F$22=1,(VLOOKUP(1,Tablas!$A$147:$G$149,4,TRUE)), (IF(3-$F$22=2, (VLOOKUP(2,Tablas!$A$147:$G$149,4,TRUE)), (VLOOKUP(3,Tablas!$A$147:$G$149,4,TRUE)))))))), (IF($F$20=2,(IF(2-$F$22=0, 0, (IF(2-$F$22=1,(VLOOKUP(1,Tablas!$A$147:$G$149,4,TRUE)), (IF(2-$F$22=2, (VLOOKUP(2,Tablas!$A$147:$G$149,4,TRUE)), 0)))))), (IF($F$20=1,(IF(1-$F$22=0, 0, (IF(1-$F$22=1,(VLOOKUP(1,Tablas!$A$147:$G$149,4,TRUE)),0)))),0)))))))))))))), (IF($F$20=0, 0, (IF($F$22>$F$20, (VLOOKUP($F$20,Tablas!$A$147:$G$149,4,TRUE)), (IF($F$20=4,(IF(4-$F$22=0, 0, (IF(4-$F$22=1, (VLOOKUP(1,Tablas!$A$147:$G$149,4,TRUE)), (IF(4-$F$22=2, (VLOOKUP(2,Tablas!$A$147:$G$149,4,TRUE)), (IF(4-$F$22=3, (VLOOKUP(3,Tablas!$A$147:$G$149,4,TRUE)), (IF(4-$F$22=4, (VLOOKUP(3,Tablas!$A$147:$G$149,4,TRUE)), 0)))))))))), (IF($F$20=5,(IF(5-$F$22=0, (VLOOKUP(1,Tablas!$A$147:$G$149,4,TRUE)), (IF(5-$F$22=1, (VLOOKUP(1,Tablas!$A$147:$G$149,4,TRUE)), (IF(5-$F$22=2, (VLOOKUP(2,Tablas!$A$147:$G$149,4,TRUE)), (IF(5-$F$22=3, (VLOOKUP(3,Tablas!$A$147:$G$149,4,TRUE)), (IF(5-$F$22=4, (VLOOKUP(3,Tablas!$A$147:$G$149,4,TRUE)), (VLOOKUP(3,Tablas!$A$147:$G$149,4,TRUE)))))))))))), (IF($F$20=6,(IF(6-$F$22=0, (VLOOKUP(2,Tablas!$A$147:$G$149,4,TRUE)), (IF(6-$F$22=1, (VLOOKUP(2,Tablas!$A$147:$G$149,4,TRUE)), (IF(6-$F$22=2, (VLOOKUP(2,Tablas!$A$147:$G$149,4,TRUE)), (IF(6-$F$22=3, (VLOOKUP(3,Tablas!$A$147:$G$149,4,TRUE)), (IF(6-$F$22=4, (VLOOKUP(3,Tablas!$A$147:$G$149,4,TRUE)), (VLOOKUP(3,Tablas!$A$147:$G$149,4,TRUE)))))))))))), (IF($F$20>6,(IF(7-$F$22=0, (VLOOKUP(3,Tablas!$A$147:$G$149,4,TRUE)), (IF(7-$F$22=1, (VLOOKUP(3,Tablas!$A$147:$G$149,4,TRUE)), (IF(7-$F$22=2, (VLOOKUP(3,Tablas!$A$147:$G$149,4,TRUE)), (IF(7-$F$22=3, (VLOOKUP(3,Tablas!$A$147:$G$149,4,TRUE)), (IF(7-$F$22=4, (VLOOKUP(3,Tablas!$A$147:$G$149,4,TRUE)), (VLOOKUP(3,Tablas!$A$147:$G$149,4,TRUE)))))))))))), (IF($F$20=3,(IF(3-$F$22=0,0, (IF(3-$F$22=1,(VLOOKUP(1,Tablas!$A$147:$G$149,4,TRUE)), (IF(3-$F$22=2, (VLOOKUP(2,Tablas!$A$147:$G$149,4,TRUE)), (VLOOKUP(3,Tablas!$A$147:$G$149,4,TRUE)))))))), (IF($F$20=2,(IF(2-$F$22=0, 0, (IF(2-$F$22=1,(VLOOKUP(1,Tablas!$A$147:$G$149,4,TRUE)), (IF(2-$F$22=2, (VLOOKUP(2,Tablas!$A$147:$G$149,4,TRUE)), 0)))))), (IF($F$20=1,(IF(1-$F$22=0, 0, (IF(1-$F$22=1,(VLOOKUP(1,Tablas!$A$147:$G$149,4,TRUE)),0)))),0))))))))))))))))))) -> 173.9434667 | I68: =IF($F$18=1, (IF($F$20=0, 0, (IF($F$22>$F$20, (VLOOKUP($F$20,Tablas!$A$147:$G$149,5,TRUE)), (IF($F$20>4,(IF($F$22=0, (VLOOKUP(3,Tablas!$A$147:$G$149,5,TRUE)), (IF($F$22=1, (VLOOKUP(3,Tablas!$A$147:$G$149,5,TRUE)), (IF($F$22=2, (VLOOKUP(3,Tablas!$A$147:$G$149,5,TRUE)), (VLOOKUP(3,Tablas!$A$147:$G$149,5,TRUE)))))))), (IF($F$20=4,(IF(4-$F$22=0,(VLOOKUP(2,Tablas!$A$147:$G$149,5,TRUE)), (IF(4-$F$22=1,(VLOOKUP(2,Tablas!$A$147:$G$149,5,TRUE)), (IF(4-$F$22=2, (VLOOKUP(2,Tablas!$A$147:$G$149,5,TRUE)), (VLOOKUP(3,Tablas!$A$147:$G$149,5,TRUE)))))))), (IF($F$20=3,(IF(3-$F$22=0,(VLOOKUP(1,Tablas!$A$147:$G$149,5,TRUE)), (IF(3-$F$22=1,(VLOOKUP(1,Tablas!$A$147:$G$149,5,TRUE)), (IF(3-$F$22=2, (VLOOKUP(2,Tablas!$A$147:$G$149,5,TRUE)), (VLOOKUP(3,Tablas!$A$147:$G$149,5,TRUE)))))))), (IF($F$20=2,(IF(2-$F$22=0, 0, (IF(2-$F$22=1,(VLOOKUP(1,Tablas!$A$147:$G$149,5,TRUE)), (IF(2-$F$22=2, (VLOOKUP(2,Tablas!$A$147:$G$149,5,TRUE)), 0)))))), (IF($F$20=1,(IF(1-$F$22=0, 0, (IF(1-$F$22=1,(VLOOKUP(1,Tablas!$A$147:$G$149,5,TRUE)),0)))),0)))))))))))))), (IF($F$20=0, 0, (IF($F$22>$F$20, (VLOOKUP($F$20,Tablas!$A$147:$G$149,5,TRUE)), (IF($F$20=4,(IF(4-$F$22=0, 0, (IF(4-$F$22=1, (VLOOKUP(1,Tablas!$A$147:$G$149,5,TRUE)), (IF(4-$F$22=2, (VLOOKUP(2,Tablas!$A$147:$G$149,5,TRUE)), (IF(4-$F$22=3, (VLOOKUP(3,Tablas!$A$147:$G$149,5,TRUE)), (IF(4-$F$22=4, (VLOOKUP(3,Tablas!$A$147:$G$149,5,TRUE)), 0)))))))))), (IF($F$20=5,(IF(5-$F$22=0, (VLOOKUP(1,Tablas!$A$147:$G$149,5,TRUE)), (IF(5-$F$22=1, (VLOOKUP(1,Tablas!$A$147:$G$149,5,TRUE)), (IF(5-$F$22=2, (VLOOKUP(2,Tablas!$A$147:$G$149,5,TRUE)), (IF(5-$F$22=3, (VLOOKUP(3,Tablas!$A$147:$G$149,5,TRUE)), (IF(5-$F$22=4, (VLOOKUP(3,Tablas!$A$147:$G$149,5,TRUE)), (VLOOKUP(3,Tablas!$A$147:$G$149,5,TRUE)))))))))))), (IF($F$20=6,(IF(6-$F$22=0, (VLOOKUP(2,Tablas!$A$147:$G$149,5,TRUE)), (IF(6-$F$22=1, (VLOOKUP(2,Tablas!$A$147:$G$149,5,TRUE)), (IF(6-$F$22=2, (VLOOKUP(2,Tablas!$A$147:$G$149,5,TRUE)), (IF(6-$F$22=3, (VLOOKUP(3,Tablas!$A$147:$G$149,5,TRUE)), (IF(6-$F$22=4, (VLOOKUP(3,Tablas!$A$147:$G$149,5,TRUE)), (VLOOKUP(3,Tablas!$A$147:$G$149,5,TRUE)))))))))))), (IF($F$20>6,(IF(7-$F$22=0, (VLOOKUP(3,Tablas!$A$147:$G$149,5,TRUE)), (IF(7-$F$22=1, (VLOOKUP(3,Tablas!$A$147:$G$149,5,TRUE)), (IF(7-$F$22=2, (VLOOKUP(3,Tablas!$A$147:$G$149,5,TRUE)), (IF(7-$F$22=3, (VLOOKUP(3,Tablas!$A$147:$G$149,5,TRUE)), (IF(7-$F$22=4, (VLOOKUP(3,Tablas!$A$147:$G$149,5,TRUE)), (VLOOKUP(3,Tablas!$A$147:$G$149,5,TRUE)))))))))))), (IF($F$20=3,(IF(3-$F$22=0,0, (IF(3-$F$22=1,(VLOOKUP(1,Tablas!$A$147:$G$149,5,TRUE)), (IF(3-$F$22=2, (VLOOKUP(2,Tablas!$A$147:$G$149,5,TRUE)), (VLOOKUP(3,Tablas!$A$147:$G$149,5,TRUE)))))))), (IF($F$20=2,(IF(2-$F$22=0, 0, (IF(2-$F$22=1,(VLOOKUP(1,Tablas!$A$147:$G$149,5,TRUE)), (IF(2-$F$22=2, (VLOOKUP(2,Tablas!$A$147:$G$149,5,TRUE)), 0)))))), (IF($F$20=1,(IF(1-$F$22=0, 0, (IF(1-$F$22=1,(VLOOKUP(1,Tablas!$A$147:$G$149,5,TRUE)),0)))),0))))))))))))))))))) -> 147.3397333 | J68: =IF($F$18=1, (IF($F$20=0, 0, (IF($F$22>$F$20, (VLOOKUP($F$20,Tablas!$A$147:$G$149,6,TRUE)), (IF($F$20>4,(IF($F$22=0, (VLOOKUP(3,Tablas!$A$147:$G$149,6,TRUE)), (IF($F$22=1, (VLOOKUP(3,Tablas!$A$147:$G$149,6,TRUE)), (IF($F$22=2, (VLOOKUP(3,Tablas!$A$147:$G$149,6,TRUE)), (VLOOKUP(3,Tablas!$A$147:$G$149,6,TRUE)))))))), (IF($F$20=4,(IF(4-$F$22=0,(VLOOKUP(2,Tablas!$A$147:$G$149,6,TRUE)), (IF(4-$F$22=1,(VLOOKUP(2,Tablas!$A$147:$G$149,6,TRUE)), (IF(4-$F$22=2, (VLOOKUP(2,Tablas!$A$147:$G$149,6,TRUE)), (VLOOKUP(3,Tablas!$A$147:$G$149,6,TRUE)))))))), (IF($F$20=3,(IF(3-$F$22=0,(VLOOKUP(1,Tablas!$A$147:$G$149,6,TRUE)), (IF(3-$F$22=1,(VLOOKUP(1,Tablas!$A$147:$G$149,6,TRUE)), (IF(3-$F$22=2, (VLOOKUP(2,Tablas!$A$147:$G$149,6,TRUE)), (VLOOKUP(3,Tablas!$A$147:$G$149,6,TRUE)))))))), (IF($F$20=2,(IF(2-$F$22=0, 0, (IF(2-$F$22=1,(VLOOKUP(1,Tablas!$A$147:$G$149,6,TRUE)), (IF(2-$F$22=2, (VLOOKUP(2,Tablas!$A$147:$G$149,6,TRUE)), 0)))))), (IF($F$20=1,(IF(1-$F$22=0, 0, (IF(1-$F$22=1,(VLOOKUP(1,Tablas!$A$147:$G$149,6,TRUE)),0)))),0)))))))))))))), (IF($F$20=0, 0, (IF($F$22>$F$20, (VLOOKUP($F$20,Tablas!$A$147:$G$149,6,TRUE)), (IF($F$20=4,(IF(4-$F$22=0, 0, (IF(4-$F$22=1, (VLOOKUP(1,Tablas!$A$147:$G$149,6,TRUE)), (IF(4-$F$22=2, (VLOOKUP(2,Tablas!$A$147:$G$149,6,TRUE)), (IF(4-$F$22=3, (VLOOKUP(3,Tablas!$A$147:$G$149,6,TRUE)), (IF(4-$F$22=4, (VLOOKUP(3,Tablas!$A$147:$G$149,6,TRUE)), 0)))))))))), (IF($F$20=5,(IF(5-$F$22=0, (VLOOKUP(1,Tablas!$A$147:$G$149,6,TRUE)), (IF(5-$F$22=1, (VLOOKUP(1,Tablas!$A$147:$G$149,6,TRUE)), (IF(5-$F$22=2, (VLOOKUP(2,Tablas!$A$147:$G$149,6,TRUE)), (IF(5-$F$22=3, (VLOOKUP(3,Tablas!$A$147:$G$149,6,TRUE)), (IF(5-$F$22=4, (VLOOKUP(3,Tablas!$A$147:$G$149,6,TRUE)), (VLOOKUP(3,Tablas!$A$147:$G$149,6,TRUE)))))))))))), (IF($F$20=6,(IF(6-$F$22=0, (VLOOKUP(2,Tablas!$A$147:$G$149,6,TRUE)), (IF(6-$F$22=1, (VLOOKUP(2,Tablas!$A$147:$G$149,6,TRUE)), (IF(6-$F$22=2, (VLOOKUP(2,Tablas!$A$147:$G$149,6,TRUE)), (IF(6-$F$22=3, (VLOOKUP(3,Tablas!$A$147:$G$149,6,TRUE)), (IF(6-$F$22=4, (VLOOKUP(3,Tablas!$A$147:$G$149,6,TRUE)), (VLOOKUP(3,Tablas!$A$147:$G$149,6,TRUE)))))))))))), (IF($F$20>6,(IF(7-$F$22=0, (VLOOKUP(3,Tablas!$A$147:$G$149,6,TRUE)), (IF(7-$F$22=1, (VLOOKUP(3,Tablas!$A$147:$G$149,6,TRUE)), (IF(7-$F$22=2, (VLOOKUP(3,Tablas!$A$147:$G$149,6,TRUE)), (IF(7-$F$22=3, (VLOOKUP(3,Tablas!$A$147:$G$149,6,TRUE)), (IF(7-$F$22=4, (VLOOKUP(3,Tablas!$A$147:$G$149,6,TRUE)), (VLOOKUP(3,Tablas!$A$147:$G$149,6,TRUE)))))))))))), (IF($F$20=3,(IF(3-$F$22=0,0, (IF(3-$F$22=1,(VLOOKUP(1,Tablas!$A$147:$G$149,6,TRUE)), (IF(3-$F$22=2, (VLOOKUP(2,Tablas!$A$147:$G$149,6,TRUE)), (VLOOKUP(3,Tablas!$A$147:$G$149,6,TRUE)))))))), (IF($F$20=2,(IF(2-$F$22=0, 0, (IF(2-$F$22=1,(VLOOKUP(1,Tablas!$A$147:$G$149,6,TRUE)), (IF(2-$F$22=2, (VLOOKUP(2,Tablas!$A$147:$G$149,6,TRUE)), 0)))))), (IF($F$20=1,(IF(1-$F$22=0, 0, (IF(1-$F$22=1,(VLOOKUP(1,Tablas!$A$147:$G$149,6,TRUE)),0)))),0))))))))))))))))))) -> 127.8442667 | K68: =IF($F$18=1, (IF($F$20=0, 0, (IF($F$22>$F$20, (VLOOKUP($F$20,Tablas!$A$147:$G$149,7,TRUE)), (IF($F$20>4,(IF($F$22=0, (VLOOKUP(3,Tablas!$A$147:$G$149,7,TRUE)), (IF($F$22=1, (VLOOKUP(3,Tablas!$A$147:$G$149,7,TRUE)), (IF($F$22=2, (VLOOKUP(3,Tablas!$A$147:$G$149,7,TRUE)), (VLOOKUP(3,Tablas!$A$147:$G$149,7,TRUE)))))))), (IF($F$20=4,(IF(4-$F$22=0,(VLOOKUP(2,Tablas!$A$147:$G$149,7,TRUE)), (IF(4-$F$22=1,(VLOOKUP(2,Tablas!$A$147:$G$149,7,TRUE)), (IF(4-$F$22=2, (VLOOKUP(2,Tablas!$A$147:$G$149,7,TRUE)), (VLOOKUP(3,Tablas!$A$147:$G$149,7,TRUE)))))))), (IF($F$20=3,(IF(3-$F$22=0,(VLOOKUP(1,Tablas!$A$147:$G$149,7,TRUE)), (IF(3-$F$22=1,(VLOOKUP(1,Tablas!$A$147:$G$149,7,TRUE)), (IF(3-$F$22=2, (VLOOKUP(2,Tablas!$A$147:$G$149,7,TRUE)), (VLOOKUP(3,Tablas!$A$147:$G$149,7,TRUE)))))))), (IF($F$20=2,(IF(2-$F$22=0, 0, (IF(2-$F$22=1,(VLOOKUP(1,Tablas!$A$147:$G$149,7,TRUE)), (IF(2-$F$22=2, (VLOOKUP(2,Tablas!$A$147:$G$149,7,TRUE)), 0)))))), (IF($F$20=1,(IF(1-$F$22=0, 0, (IF(1-$F$22=1,(VLOOKUP(1,Tablas!$A$147:$G$149,7,TRUE)),0)))),0)))))))))))))), (IF($F$20=0, 0, (IF($F$22>$F$20, (VLOOKUP($F$20,Tablas!$A$147:$G$149,7,TRUE)), (IF($F$20=4,(IF(4-$F$22=0, 0, (IF(4-$F$22=1, (VLOOKUP(1,Tablas!$A$147:$G$149,7,TRUE)), (IF(4-$F$22=2, (VLOOKUP(2,Tablas!$A$147:$G$149,7,TRUE)), (IF(4-$F$22=3, (VLOOKUP(3,Tablas!$A$147:$G$149,7,TRUE)), (IF(4-$F$22=4, (VLOOKUP(3,Tablas!$A$147:$G$149,7,TRUE)), 0)))))))))), (IF($F$20=5,(IF(5-$F$22=0, (VLOOKUP(1,Tablas!$A$147:$G$149,7,TRUE)), (IF(5-$F$22=1, (VLOOKUP(1,Tablas!$A$147:$G$149,7,TRUE)), (IF(5-$F$22=2, (VLOOKUP(2,Tablas!$A$147:$G$149,7,TRUE)), (IF(5-$F$22=3, (VLOOKUP(3,Tablas!$A$147:$G$149,7,TRUE)), (IF(5-$F$22=4, (VLOOKUP(3,Tablas!$A$147:$G$149,7,TRUE)), (VLOOKUP(3,Tablas!$A$147:$G$149,7,TRUE)))))))))))), (IF($F$20=6,(IF(6-$F$22=0, (VLOOKUP(2,Tablas!$A$147:$G$149,7,TRUE)), (IF(6-$F$22=1, (VLOOKUP(2,Tablas!$A$147:$G$149,7,TRUE)), (IF(6-$F$22=2, (VLOOKUP(2,Tablas!$A$147:$G$149,7,TRUE)), (IF(6-$F$22=3, (VLOOKUP(3,Tablas!$A$147:$G$149,7,TRUE)), (IF(6-$F$22=4, (VLOOKUP(3,Tablas!$A$147:$G$149,7,TRUE)), (VLOOKUP(3,Tablas!$A$147:$G$149,7,TRUE)))))))))))), (IF($F$20>6,(IF(7-$F$22=0, (VLOOKUP(3,Tablas!$A$147:$G$149,7,TRUE)), (IF(7-$F$22=1, (VLOOKUP(3,Tablas!$A$147:$G$149,7,TRUE)), (IF(7-$F$22=2, (VLOOKUP(3,Tablas!$A$147:$G$149,7,TRUE)), (IF(7-$F$22=3, (VLOOKUP(3,Tablas!$A$147:$G$149,7,TRUE)), (IF(7-$F$22=4, (VLOOKUP(3,Tablas!$A$147:$G$149,7,TRUE)), (VLOOKUP(3,Tablas!$A$147:$G$149,7,TRUE)))))))))))), (IF($F$20=3,(IF(3-$F$22=0,0, (IF(3-$F$22=1,(VLOOKUP(1,Tablas!$A$147:$G$149,7,TRUE)), (IF(3-$F$22=2, (VLOOKUP(2,Tablas!$A$147:$G$149,7,TRUE)), (VLOOKUP(3,Tablas!$A$147:$G$149,7,TRUE)))))))), (IF($F$20=2,(IF(2-$F$22=0, 0, (IF(2-$F$22=1,(VLOOKUP(1,Tablas!$A$147:$G$149,7,TRUE)), (IF(2-$F$22=2, (VLOOKUP(2,Tablas!$A$147:$G$149,7,TRUE)), 0)))))), (IF($F$20=1,(IF(1-$F$22=0, 0, (IF(1-$F$22=1,(VLOOKUP(1,Tablas!$A$147:$G$149,7,TRUE)),0)))),0))))))))))))))))))) -> 99.20213333
E69: Total de Prima neta | G69: =SUM(G66:G68) -> 1538.103467 | H69: =SUM(H66:H68) -> 1348.3232 | I69: =SUM(I66:I68) -> 1114.168533 | J69: =SUM(J66:J68) -> 966.1493333 | K69: =SUM(K66:K68) -> 749.4517333
E70: Ajuste por variante con coaseguro fuera del país de residencia | G70: =IF('INGRESO DE DATOS'!$H$20,G69*-25%,0) -> 0 | H70: =IF('INGRESO DE DATOS'!$H$20,H69*-25%,0) -> 0 | I70: =IF('INGRESO DE DATOS'!$H$20,I69*-25%,0) -> 0 | J70: =IF('INGRESO DE DATOS'!$H$20,J69*-25%,0) -> 0 | K70: =IF('INGRESO DE DATOS'!$H$20,K69*-25%,0) -> 0
E71: Tarifa administrativa anual | G71: 75 | H71: 75 | I71: 75 | J71: 75 | K71: 75
E72: IVA (12%) | G72: =(G69+G71)*0% -> 0 | H72: =(H69+H71)*0% -> 0 | I72: 0 | J72: 0 | K72: 0
E73: TOTAL de primera cuota | G73: =SUM(G69:G72) -> 1613.103467 | H73: =SUM(H69:H72) -> 1423.3232 | I73: =SUM(I69:I72) -> 1189.168533 | J73: =SUM(J69:J72) -> 1041.149333 | K73: =SUM(K69:K72) -> 824.4517333
E74: Costo de tarifa mensual 2 a 12 | G74: =SUM(G69:G70) -> 1538.103467 | H74: =SUM(H69:H70) -> 1348.3232 | I74: 1114.168533 | J74: 966.1493333 | K74: 749.4517333
E75: TOTAL ANUAL | G75: =G73+(G74*11) -> 18532.2416 | H75: =H73+(H74*11) -> 16254.8784 | I75: =I73+(I74*11) -> 13445.0224 | J75: =J73+(J74*11) -> 11668.792 | K75: =K73+(K74*11) -> 9068.4208
E76: Ahorros en tarifas de prima para niños | G76: =IF($F$18=1,IF($F$20=0,0,IF($F$22=0,0,IF($F$22=1,(VLOOKUP(1,Tablas!$A$147:$G$149,3,TRUE)),(VLOOKUP(2,Tablas!$A$147:$G$149,3,TRUE))))), IF($F$20=0,0,IF($F$22=0,0,IF($F$22=1,(VLOOKUP(1,Tablas!$A$147:$G$149,3,TRUE)),IF($F$22=2,(VLOOKUP(2,Tablas!$A$147:$G$149,3,TRUE)), (VLOOKUP(3,Tablas!$A$147:$G$149,3,TRUE))))))) -> 198.4042667 | H76: =IF($F$18=1,IF($F$20=0,0,IF($F$22=0,0,IF($F$22=1,(VLOOKUP(1,Tablas!$A$147:$G$149,4,TRUE)),(VLOOKUP(2,Tablas!$A$147:$G$149,4,TRUE))))), IF($F$20=0,0,IF($F$22=0,0,IF($F$22=1,(VLOOKUP(1,Tablas!$A$147:$G$149,4,TRUE)),IF($F$22=2,(VLOOKUP(2,Tablas!$A$147:$G$149,4,TRUE)), (VLOOKUP(3,Tablas!$A$147:$G$149,4,TRUE))))))) -> 173.9434667 | I76: =IF($F$18=1,IF($F$20=0,0,IF($F$22=0,0,IF($F$22=1,(VLOOKUP(1,Tablas!$A$147:$G$149,5,TRUE)),(VLOOKUP(2,Tablas!$A$147:$G$149,5,TRUE))))), IF($F$20=0,0,IF($F$22=0,0,IF($F$22=1,(VLOOKUP(1,Tablas!$A$147:$G$149,5,TRUE)),IF($F$22=2,(VLOOKUP(2,Tablas!$A$147:$G$149,5,TRUE)), (VLOOKUP(3,Tablas!$A$147:$G$149,5,TRUE))))))) -> 147.3397333 | J76: =IF($F$18=1,IF($F$20=0,0,IF($F$22=0,0,IF($F$22=1,(VLOOKUP(1,Tablas!$A$147:$G$149,6,TRUE)),(VLOOKUP(2,Tablas!$A$147:$G$149,6,TRUE))))), IF($F$20=0,0,IF($F$22=0,0,IF($F$22=1,(VLOOKUP(1,Tablas!$A$147:$G$149,6,TRUE)),IF($F$22=2,(VLOOKUP(2,Tablas!$A$147:$G$149,6,TRUE)), (VLOOKUP(3,Tablas!$A$147:$G$149,6,TRUE))))))) -> 127.8442667 | K76: =IF($F$18=1,IF($F$20=0,0,IF($F$22=0,0,IF($F$22=1,(VLOOKUP(1,Tablas!$A$147:$G$149,7,TRUE)),(VLOOKUP(2,Tablas!$A$147:$G$149,7,TRUE))))), IF($F$20=0,0,IF($F$22=0,0,IF($F$22=1,(VLOOKUP(1,Tablas!$A$147:$G$149,7,TRUE)),IF($F$22=2,(VLOOKUP(2,Tablas!$A$147:$G$149,7,TRUE)), (VLOOKUP(3,Tablas!$A$147:$G$149,7,TRUE))))))) -> 99.20213333
E78: Tarifas en US $ - Efectivas a partir del 1ro de enero de 2023
E79: Este presupuesto solamente tiene carácter informativo y en ningún momento expresa compromiso legal para suministrarle cobertura de seguro. La emisión de una póliza de seguro Bupa está sujeta a todas las evaluaciones de riesgo por parte de Bupa y a la recepción de todos los pagos de prima requeridos.

Sheet Resumen tarifas
A27: Cotizador de Seguro Médico - Bupa Global Health Plans
A29: Nombre del Asegurado Titular | C29: =+'INGRESO DE DATOS'!$D$13 -> NOMBRE COMPLETO
A32: Número de adultos en la póliza | C32: =+'INGRESO DE DATOS'!$D$15 -> 2 | E32: Edad del Asegurado Titular | G32: =+'INGRESO DE DATOS'!$D$17 -> 32
A35: Número de niños en la póliza | C35: =+'INGRESO DE DATOS'!$J$15 -> 2 | E35: Edad del/la cónyuge | G35: =+'INGRESO DE DATOS'!$J$17 -> 46
D38: FECHA DE LA COTIZACIÓN: | E38: =NOW() -> 2023-07-27T10:54:55.150
A40: Global Ultimate Health Plan
A41: Deducibles | C41: PLAN 1 | D41: PLAN 2
A42: En el país de residencia | C42: 0 | D42: 1000
A43: Fuera del país de residencia | C43: 0 | D43: 1000
C44: Tarifas anuales
C45: =#REF! ->  | D45: =#REF! -> 
C46: Tarifas semi anuales
C47: =#REF! ->  | D47: =#REF! -> 
C48: =#REF! ->  | D48: =#REF! -> 
C49: Tarifas trimestrales
C50: =#REF! ->  | D50: =#REF! -> 
C51: =#REF! ->  | D51: =#REF! -> 
A52: Ahorros en tarifas de prima para niños (pago annual)* | C52: =#REF! ->  | D52: =#REF! -> 
C53: Tarifas mensuales
C54: =#REF! ->  | D54: =#REF! -> 
C55: =#REF! ->  | D55: =#REF! -> 
A58: Global Elite Health Plan
A59: Deducibles | D59: PLAN 1 | E59: PLAN 2 | F59: PLAN 3 | G59: PLAN 4 | H59: PLAN 5
A60: En el país de residencia | D60: 250 | E60: 2000 | F60: 3500 | G60: 5000 | H60: 10000
A61: Fuera del país de residencia | D61: 5000 | E61: 2000 | F61: 3500 | G61: 5000 | H61: 10000
D62: Tarifas anuales
D63: =+'Global Elite'!G36 -> 16554.68 | E63: =+'Global Elite'!H36 -> 14521.32 | F63: =+'Global Elite'!I36 -> 12012.52 | G63: =+'Global Elite'!J36 -> 10426.6 | H63: =+'Global Elite'!K36 -> 8104.84
D64: Tarifas semi anuales
D65: =+'Global Elite'!G47 -> 8809.2304 | E65: =+'Global Elite'!H47 -> 7731.5496 | F65: =+'Global Elite'!I47 -> 6401.8856 | G65: =+'Global Elite'!J47 -> 5561.348 | H65: =+'Global Elite'!K47 -> 4330.8152
D66: =+'Global Elite'!G48 -> 8734.2304 | E66: =+'Global Elite'!H48 -> 7656.5496 | F66: =+'Global Elite'!I48 -> 6326.8856 | G66: =+'Global Elite'!J48 -> 5486.348 | H66: =+'Global Elite'!K48 -> 4255.8152
D67: Tarifas trimestrales
D68: =+'Global Elite'!G60 -> 4606.912 | E68: =+'Global Elite'!H60 -> 4047.738 | F68: =+'Global Elite'!I60 -> 3357.818 | G68: =+'Global Elite'!J60 -> 2921.69 | H68: =+'Global Elite'!K60 -> 2283.206
D69: =+'Global Elite'!G61 -> 4531.912 | E69: =+'Global Elite'!H61 -> 3972.738 | F69: =+'Global Elite'!I61 -> 3282.818 | G69: =+'Global Elite'!J61 -> 2846.69 | H69: =+'Global Elite'!K61 -> 2208.206
A70: Ahorros en tarifas de prima para niños (pago annual)* | D70: =+'Global Elite'!G37 -> 2125.76 | E70: =+'Global Elite'!H37 -> 2125.76 | F70: =+'Global Elite'!I37 -> 2125.76 | G70: =+'Global Elite'!J37 -> 2125.76 | H70: =+'Global Elite'!K37 -> 2125.76
D71: Tarifas mensuales
D72: ='Global Elite'!G73 -> 1613.103467 | E72: ='Global Elite'!H73 -> 1423.3232 | F72: ='Global Elite'!I73 -> 1189.168533 | G72: ='Global Elite'!J73 -> 1041.149333 | H72: ='Global Elite'!K73 -> 824.4517333
D73: ='Global Elite'!G74 -> 1538.103467 | E73: ='Global Elite'!H74 -> 1348.3232 | F73: ='Global Elite'!I74 -> 1114.168533 | G73: ='Global Elite'!J74 -> 966.1493333 | H73: ='Global Elite'!K74 -> 749.4517333
A76: Global Premier Health Plan
A77: Deducibles | E77: PLAN 1 | F77: PLAN 2 | G77: PLAN 3 | H77: PLAN 3
A78: En el país de residencia | E78: 250 | F78: 2000 | G78: 5000 | H78: 10000
A79: Fuera del país de residencia | E79: 5000 | F79: 2000 | G79: 5000 | H79: 10000
E80: Tarifas anuales
E81: =+#REF! ->  | F81: =+#REF! ->  | G81: =+#REF! ->  | H81: =+#REF! -> 
E82: Tarifas semi anuales
E83: =+#REF! ->  | F83: =+#REF! ->  | G83: =+#REF! ->  | H83: =+#REF! -> 
E84: =+#REF! ->  | F84: =+#REF! ->  | G84: =+#REF! ->  | H84: =+#REF! -> 
E85: Tarifas trimestrales
E86: =+#REF! ->  | F86: =+#REF! ->  | G86: =+#REF! ->  | H86: =+#REF! -> 
E87: =+#REF! ->  | F87: =+#REF! ->  | G87: =+#REF! ->  | H87: =+#REF! -> 
E88: Tarifas mensuales
E89: =#REF! ->  | F89: =#REF! ->  | G89: =#REF! ->  | H89: =#REF! -> 
E90: =#REF! ->  | F90: =#REF! ->  | G90: =#REF! ->  | H90: =#REF! -> 
A92: Global Select Health Plan
A93: Deducibles | E93: PLAN 1 | F93: PLAN 2 | G93: PLAN 3 | H93: PLAN 4
A94: En el país de residencia | E94: 250 | F94: 2000 | G94: 5000 | H94: 10000
A95: Fuera del país de residencia | E95: 5000 | F95: 2000 | G95: 5000 | H95: 10000
E96: Tarifas anuales
E97: =+#REF! ->  | F97: =+#REF! ->  | G97: =+#REF! ->  | H97: =+#REF! -> 
E98: Tarifas semi anuales
E99: =+#REF! ->  | F99: =+#REF! ->  | G99: =+#REF! ->  | H99: =+#REF! -> 
E100: =+#REF! ->  | F100: =+#REF! ->  | G100: =+#REF! ->  | H100: =+#REF! -> 
E101: Tarifas trimestrales
E102: =+#REF! ->  | F102: =+#REF! ->  | G102: =+#REF! ->  | H102: =+#REF! -> 
E103: =+#REF! ->  | F103: =+#REF! ->  | G103: =+#REF! ->  | H103: =+#REF! -> 
E104: Tarifas mensuales
E105: =#REF! ->  | F105: =#REF! ->  | G105: =#REF! ->  | H105: =#REF! -> 
E106: =#REF! ->  | F106: =#REF! ->  | G106: =#REF! ->  | H106: =#REF! -> 
A109: Global Major Medical Health Plan
A110: Deducibles | C110: PLAN 1 | D110: PLAN 2
A111: En el país de residencia | C111: 10000 | D111: 20000
A112: Fuera del país de residencia | C112: 10000 | D112: 20000
C113: Tarifas anuales
C114: =#REF! ->  | D114: =#REF! -> 
C115: Tarifas semi anuales
C116: =#REF! ->  | D116: =#REF! -> 
C117: =#REF! ->  | D117: =#REF! -> 
C118: Tarifas trimestrales
C119: =#REF! ->  | D119: =#REF! -> 
C120: =#REF! ->  | D120: =#REF! -> 
C121: Tarifas mensuales
C122: =#REF! ->  | D122: =#REF! -> 
C123: =#REF! ->  | D123: =#REF! -> 
A126: Una tarifa administrativa de US$75 se carga automáticamente al primer pago
A127: *Basado en un modo de pago anual
A130: Tarifas en US $ - Efectivas a partir del 1ro de enero de 2023
A131: Este presupuesto solamente tiene carácter informativo y en ningún momento expresa compromiso legal para suministrarle cobertura de seguro. La emisión de una póliza de seguro Bupa está sujeta a todas las evaluaciones de riesgo por parte de Bupa y a la recepción de todos los pagos de prima requeridos.

Sheet Tablas (hidden)
A2: BUPA GLOBAL ELITE | I2: FACTOR MENSUAL: | K2: =1.12/12 -> 0.09333333333 | M2: =1.12/12 -> 0.09333333333
A3: TARIFAS ANUALES | I3: FACTOR TRIMESTRAL: | K3: 0.275 | M3: =1.1/4 -> 0.275
A4: EDAD | I4: FACTOR SEMIANUAL: | K4: 0.53 | M4: =1.06/2 -> 0.53
C5: 250 | D5: 2000 | E5: 3500 | F5: 5000 | G5: 10000 | I5: Descuento (20%): | K5: =100%-20% -> 0.8 | M5: =100%-20% -> 0.8
A6: 18 | C6: =O6 -> 5032.16 | D6: =P6 -> 4409.44 | E6: 3708.88 | F6: 3216.64 | G6: 2494.8 | I6: 8986 | J6: 7874 | K6: 6623 | L6: 5744 | M6: 4455 | O6: =I6*0.56 -> 5032.16 | P6: =J6*0.56 -> 4409.44 | Q6: 3708.88 | R6: 3216.64 | S6: 2494.8
A7: 19 | C7: =O7 -> 5032.16 | D7: =P7 -> 4409.44 | E7: =Q7 -> 3708.88 | F7: =R7 -> 3216.64 | G7: =S7 -> 2494.8 | I7: 8986 | J7: 7874 | K7: 6623 | L7: 5744 | M7: 4455 | O7: =I7*0.56 -> 5032.16 | P7: =J7*0.56 -> 4409.44 | Q7: =K7*0.56 -> 3708.88 | R7: =L7*0.56 -> 3216.64 | S7: =M7*0.56 -> 2494.8
A8: 20 | C8: 5032.16 | D8: 4409.44 | E8: 3708.88 | F8: 3216.64 | G8: 2494.8 | I8: 8986 | J8: 7874 | K8: 6623 | L8: 5744 | M8: 4455 | O8: 5032.16 | P8: 4409.44 | Q8: 3708.88 | R8: 3216.64 | S8: 2494.8
A9: 21 | C9: 5032.16 | D9: 4409.44 | E9: 3708.88 | F9: 3216.64 | G9: 2494.8 | I9: 8986 | J9: 7874 | K9: 6623 | L9: 5744 | M9: 4455 | O9: 5032.16 | P9: 4409.44 | Q9: 3708.88 | R9: 3216.64 | S9: 2494.8
A10: 22 | C10: 5032.16 | D10: 4409.44 | E10: 3708.88 | F10: 3216.64 | G10: 2494.8 | I10: 8986 | J10: 7874 | K10: 6623 | L10: 5744 | M10: 4455 | O10: 5032.16 | P10: 4409.44 | Q10: 3708.88 | R10: 3216.64 | S10: 2494.8
A11: 23 | C11: 5032.16 | D11: 4409.44 | E11: 3708.88 | F11: 3216.64 | G11: 2494.8 | I11: 8986 | J11: 7874 | K11: 6623 | L11: 5744 | M11: 4455 | O11: 5032.16 | P11: 4409.44 | Q11: 3708.88 | R11: 3216.64 | S11: 2494.8
A12: 24 | C12: 5032.16 | D12: 4409.44 | E12: 3708.88 | F12: 3216.64 | G12: 2494.8 | I12: 8986 | J12: 7874 | K12: 6623 | L12: 5744 | M12: 4455 | O12: 5032.16 | P12: 4409.44 | Q12: 3708.88 | R12: 3216.64 | S12: 2494.8
A13: 25 | C13: 5377.68 | D13: 4713.52 | E13: 3940.72 | F13: 3417.12 | G13: 2650.48 | I13: 9603 | J13: 8417 | K13: 7037 | L13: 6102 | M13: 4733 | O13: 5377.68 | P13: 4713.52 | Q13: 3940.72 | R13: 3417.12 | S13: 2650.48
A14: 26 | C14: 5377.68 | D14: 4713.52 | E14: 3940.72 | F14: 3417.12 | G14: 2650.48 | I14: 9603 | J14: 8417 | K14: 7037 | L14: 6102 | M14: 4733 | O14: 5377.68 | P14: 4713.52 | Q14: 3940.72 | R14: 3417.12 | S14: 2650.48
A15: 27 | C15: 5377.68 | D15: 4713.52 | E15: 3940.72 | F15: 3417.12 | G15: 2650.48 | I15: 9603 | J15: 8417 | K15: 7037 | L15: 6102 | M15: 4733 | O15: 5377.68 | P15: 4713.52 | Q15: 3940.72 | R15: 3417.12 | S15: 2650.48
A16: 28 | C16: 5377.68 | D16: 4713.52 | E16: 3940.72 | F16: 3417.12 | G16: 2650.48 | I16: 9603 | J16: 8417 | K16: 7037 | L16: 6102 | M16: 4733 | O16: 5377.68 | P16: 4713.52 | Q16: 3940.72 | R16: 3417.12 | S16: 2650.48
A17: 29 | C17: 5377.68 | D17: 4713.52 | E17: 3940.72 | F17: 3417.12 | G17: 2650.48 | I17: 9603 | J17: 8417 | K17: 7037 | L17: 6102 | M17: 4733 | O17: 5377.68 | P17: 4713.52 | Q17: 3940.72 | R17: 3417.12 | S17: 2650.48
A18: 30 | C18: 5981.92 | D18: 5243.28 | E18: 4349.52 | F18: 3771.04 | G18: 2925.44 | I18: 10682 | J18: 9363 | K18: 7767 | L18: 6734 | M18: 5224 | O18: 5981.92 | P18: 5243.28 | Q18: 4349.52 | R18: 3771.04 | S18: 2925.44
A19: 31 | C19: 5981.92 | D19: 5243.28 | E19: 4349.52 | F19: 3771.04 | G19: 2925.44 | I19: 10682 | J19: 9363 | K19: 7767 | L19: 6734 | M19: 5224 | O19: 5981.92 | P19: 5243.28 | Q19: 4349.52 | R19: 3771.04 | S19: 2925.44
A20: 32 | C20: 5981.92 | D20: 5243.28 | E20: 4349.52 | F20: 3771.04 | G20: 2925.44 | I20: 10682 | J20: 9363 | K20: 7767 | L20: 6734 | M20: 5224 | O20: 5981.92 | P20: 5243.28 | Q20: 4349.52 | R20: 3771.04 | S20: 2925.44
A21: 33 | C21: 5981.92 | D21: 5243.28 | E21: 4349.52 | F21: 3771.04 | G21: 2925.44 | I21: 10682 | J21: 9363 | K21: 7767 | L21: 6734 | M21: 5224 | O21: 5981.92 | P21: 5243.28 | Q21: 4349.52 | R21: 3771.04 | S21: 2925.44
A22: 34 | C22: 5981.92 | D22: 5243.28 | E22: 4349.52 | F22: 3771.04 | G22: 2925.44 | I22: 10682 | J22: 9363 | K22: 7767 | L22: 6734 | M22: 5224 | O22: 5981.92 | P22: 5243.28 | Q22: 4349.52 | R22: 3771.04 | S22: 2925.44
A23: 35 | C23: 6678 | D23: 5853.12 | E23: 4828.32 | F23: 4186 | G23: 3246.88 | I23: 11925 | J23: 10452 | K23: 8622 | L23: 7475 | M23: 5798 | O23: 6678 | P23: 5853.12 | Q23: 4828.32 | R23: 4186 | S23: 3246.88
A24: 36 | C24: 6678 | D24: 5853.12 | E24: 4828.32 | F24: 4186 | G24: 3246.88 | I24: 11925 | J24: 10452 | K24: 8622 | L24: 7475 | M24: 5798 | O24: 6678 | P24: 5853.12 | Q24: 4828.32 | R24: 4186 | S24: 3246.88
A25: 37 | C25: 6678 | D25: 5853.12 | E25: 4828.32 | F25: 4186 | G25: 3246.88 | I25: 11925 | J25: 10452 | K25: 8622 | L25: 7475 | M25: 5798 | O25: 6678 | P25: 5853.12 | Q25: 4828.32 | R25: 4186 | S25: 3246.88
A26: 38 | C26: 6678 | D26: 5853.12 | E26: 4828.32 | F26: 4186 | G26: 3246.88 | I26: 11925 | J26: 10452 | K26: 8622 | L26: 7475 | M26: 5798 | O26: 6678 | P26: 5853.12 | Q26: 4828.32 | R26: 4186 | S26: 3246.88
A27: 39 | C27: 6678 | D27: 5853.12 | E27: 4828.32 | F27: 4186 | G27: 3246.88 | I27: 11925 | J27: 10452 | K27: 8622 | L27: 7475 | M27: 5798 | O27: 6678 | P27: 5853.12 | Q27: 4828.32 | R27: 4186 | S27: 3246.88
A28: 40 | C28: 7482.16 | D28: 6557.04 | E28: 5384.96 | F28: 4669.28 | G28: 3621.52 | I28: 13361 | J28: 11709 | K28: 9616 | L28: 8338 | M28: 6467 | O28: 7482.16 | P28: 6557.04 | Q28: 5384.96 | R28: 4669.28 | S28: 3621.52
A29: 41 | C29: 7482.16 | D29: 6557.04 | E29: 5384.96 | F29: 4669.28 | G29: 3621.52 | I29: 13361 | J29: 11709 | K29: 9616 | L29: 8338 | M29: 6467 | O29: 7482.16 | P29: 6557.04 | Q29: 5384.96 | R29: 4669.28 | S29: 3621.52
A30: 42 | C30: 7482.16 | D30: 6557.04 | E30: 5384.96 | F30: 4669.28 | G30: 3621.52 | I30: 13361 | J30: 11709 | K30: 9616 | L30: 8338 | M30: 6467 | O30: 7482.16 | P30: 6557.04 | Q30: 5384.96 | R30: 4669.28 | S30: 3621.52
A31: 43 | C31: 7482.16 | D31: 6557.04 | E31: 5384.96 | F31: 4669.28 | G31: 3621.52 | I31: 13361 | J31: 11709 | K31: 9616 | L31: 8338 | M31: 6467 | O31: 7482.16 | P31: 6557.04 | Q31: 5384.96 | R31: 4669.28 | S31: 3621.52
A32: 44 | C32: 7482.16 | D32: 6557.04 | E32: 5384.96 | F32: 4669.28 | G32: 3621.52 | I32: 13361 | J32: 11709 | K32: 9616 | L32: 8338 | M32: 6467 | O32: 7482.16 | P32: 6557.04 | Q32: 5384.96 | R32: 4669.28 | S32: 3621.52
A33: 45 | C33: 8372 | D33: 7339.36 | E33: 6009.36 | F33: 5210.8 | G33: 4041.52 | I33: 14950 | J33: 13106 | K33: 10731 | L33: 9305 | M33: 7217 | O33: 8372 | P33: 7339.36 | Q33: 6009.36 | R33: 5210.8 | S33: 4041.52
A34: 46 | C34: 8372 | D34: 7339.36 | E34: 6009.36 | F34: 5210.8 | G34: 4041.52 | I34: 14950 | J34: 13106 | K34: 10731 | L34: 9305 | M34: 7217 | O34: 8372 | P34: 7339.36 | Q34: 6009.36 | R34: 5210.8 | S34: 4041.52
A35: 47 | C35: 8372 | D35: 7339.36 | E35: 6009.36 | F35: 5210.8 | G35: 4041.52 | I35: 14950 | J35: 13106 | K35: 10731 | L35: 9305 | M35: 7217 | O35: 8372 | P35: 7339.36 | Q35: 6009.36 | R35: 5210.8 | S35: 4041.52
A36: 48 | C36: 8372 | D36: 7339.36 | E36: 6009.36 | F36: 5210.8 | G36: 4041.52 | I36: 14950 | J36: 13106 | K36: 10731 | L36: 9305 | M36: 7217 | O36: 8372 | P36: 7339.36 | Q36: 6009.36 | R36: 5210.8 | S36: 4041.52
A37: 49 | C37: 8372 | D37: 7339.36 | E37: 6009.36 | F37: 5210.8 | G37: 4041.52 | I37: 14950 | J37: 13106 | K37: 10731 | L37: 9305 | M37: 7217 | O37: 8372 | P37: 7339.36 | Q37: 6009.36 | R37: 5210.8 | S37: 4041.52
A38: 50 | C38: 9377.76 | D38: 8220.24 | E38: 6713.28 | F38: 5821.2 | G38: 4515.28 | I38: 16746 | J38: 14679 | K38: 11988 | L38: 10395 | M38: 8063 | O38: 9377.76 | P38: 8220.24 | Q38: 6713.28 | R38: 5821.2 | S38: 4515.28
A39: 51 | C39: 9377.76 | D39: 8220.24 | E39: 6713.28 | F39: 5821.2 | G39: 4515.28 | I39: 16746 | J39: 14679 | K39: 11988 | L39: 10395 | M39: 8063 | O39: 9377.76 | P39: 8220.24 | Q39: 6713.28 | R39: 5821.2 | S39: 4515.28
A40: 52 | C40: 9377.76 | D40: 8220.24 | E40: 6713.28 | F40: 5821.2 | G40: 4515.28 | I40: 16746 | J40: 14679 | K40: 11988 | L40: 10395 | M40: 8063 | O40: 9377.76 | P40: 8220.24 | Q40: 6713.28 | R40: 5821.2 | S40: 4515.28
A41: 53 | C41: 9377.76 | D41: 8220.24 | E41: 6713.28 | F41: 5821.2 | G41: 4515.28 | I41: 16746 | J41: 14679 | K41: 11988 | L41: 10395 | M41: 8063 | O41: 9377.76 | P41: 8220.24 | Q41: 6713.28 | R41: 5821.2 | S41: 4515.28
A42: 54 | C42: 9377.76 | D42: 8220.24 | E42: 6713.28 | F42: 5821.2 | G42: 4515.28 | I42: 16746 | J42: 14679 | K42: 11988 | L42: 10395 | M42: 8063 | O42: 9377.76 | P42: 8220.24 | Q42: 6713.28 | R42: 5821.2 | S42: 4515.28
A43: 55 | C43: 10484.88 | D43: 9190.72 | E43: 7495.6 | F43: 6499.92 | G43: 5041.68 | I43: 18723 | J43: 16412 | K43: 13385 | L43: 11607 | M43: 9003 | O43: 10484.88 | P43: 9190.72 | Q43: 7495.6 | R43: 6499.92 | S43: 5041.68
A44: 56 | C44: 10484.88 | D44: 9190.72 | E44: 7495.6 | F44: 6499.92 | G44: 5041.68 | I44: 18723 | J44: 16412 | K44: 13385 | L44: 11607 | M44: 9003 | O44: 10484.88 | P44: 9190.72 | Q44: 7495.6 | R44: 6499.92 | S44: 5041.68
A45: 57 | C45: 10484.88 | D45: 9190.72 | E45: 7495.6 | F45: 6499.92 | G45: 5041.68 | I45: 18723 | J45: 16412 | K45: 13385 | L45: 11607 | M45: 9003 | O45: 10484.88 | P45: 9190.72 | Q45: 7495.6 | R45: 6499.92 | S45: 5041.68
A46: 58 | C46: 10484.88 | D46: 9190.72 | E46: 7495.6 | F46: 6499.92 | G46: 5041.68 | I46: 18723 | J46: 16412 | K46: 13385 | L46: 11607 | M46: 9003 | O46: 10484.88 | P46: 9190.72 | Q46: 7495.6 | R46: 6499.92 | S46: 5041.68
A47: 59 | C47: 10484.88 | D47: 9190.72 | E47: 7495.6 | F47: 6499.92 | G47: 5041.68 | I47: 18723 | J47: 16412 | K47: 13385 | L47: 11607 | M47: 9003 | O47: 10484.88 | P47: 9190.72 | Q47: 7495.6 | R47: 6499.92 | S47: 5041.68
A48: 60 | C48: 11221.84 | D48: 9835.84 | E48: 8015.84 | F48: 6951.84 | G48: 5391.68 | I48: 20039 | J48: 17564 | K48: 14314 | L48: 12414 | M48: 9628 | O48: 11221.84 | P48: 9835.84 | Q48: 8015.84 | R48: 6951.84 | S48: 5391.68
A49: 61 | C49: 12505.36 | D49: 10961.44 | E49: 8927.52 | F49: 7741.44 | G49: 6004.32 | I49: 22331 | J49: 19574 | K49: 15942 | L49: 13824 | M49: 10722 | O49: 12505.36 | P49: 10961.44 | Q49: 8927.52 | R49: 7741.44 | S49: 6004.32
A50: 62 | C50: 13893.6 | D50: 12178.88 | E50: 9916.48 | F50: 8598.24 | G50: 6668.48 | I50: 24810 | J50: 21748 | K50: 17708 | L50: 15354 | M50: 11908 | O50: 13893.6 | P50: 12178.88 | Q50: 9916.48 | R50: 8598.24 | S50: 6668.48
A51: 63 | C51: 15387.68 | D51: 13488.16 | E51: 10982.16 | F51: 9522.24 | G51: 7386.4 | I51: 27478 | J51: 24086 | K51: 19611 | L51: 17004 | M51: 13190 | O51: 15387.68 | P51: 13488.16 | Q51: 10982.16 | R51: 9522.24 | S51: 7386.4
A52: 64 | C52: 16987.04 | D52: 14888.16 | E52: 12124.56 | F52: 10513.44 | G52: 8154.16 | I52: 30334 | J52: 26586 | K52: 21651 | L52: 18774 | M52: 14561 | O52: 16987.04 | P52: 14888.16 | Q52: 12124.56 | R52: 10513.44 | S52: 8154.16
A53: 65 | C53: 18689.44 | D53: 16381.12 | E53: 13344.8 | F53: 11571.28 | G53: 8974.56 | I53: 33374 | J53: 29252 | K53: 23830 | L53: 20663 | M53: 16026 | O53: 18689.44 | P53: 16381.12 | Q53: 13344.8 | R53: 11571.28 | S53: 8974.56
A54: 66 | C54: 20497.12 | D54: 17965.36 | E54: 14644 | F54: 12697.44 | G54: 9847.04 | I54: 36602 | J54: 32081 | K54: 26150 | L54: 22674 | M54: 17584 | O54: 20497.12 | P54: 17965.36 | Q54: 14644 | R54: 12697.44 | S54: 9847.04
A55: 67 | C55: 22410.08 | D55: 19642 | E55: 16018.8 | F55: 13889.68 | G55: 10772.16 | I55: 40018 | J55: 35075 | K55: 28605 | L55: 24803 | M55: 19236 | O55: 22410.08 | P55: 19642 | Q55: 16018.8 | R55: 13889.68 | S55: 10772.16
A56: 68 | C56: 24426.64 | D56: 21409.92 | E56: 17470.32 | F56: 15148.56 | G56: 11748.24 | I56: 43619 | J56: 38232 | K56: 31197 | L56: 27051 | M56: 20979 | O56: 24426.64 | P56: 21409.92 | Q56: 17470.32 | R56: 15148.56 | S56: 11748.24
A57: 69 | C57: 26549.6 | D57: 23270.8 | E57: 18999.68 | F57: 16475.76 | G57: 12776.96 | I57: 47410 | J57: 41555 | K57: 33928 | L57: 29421 | M57: 22816 | O57: 26549.6 | P57: 23270.8 | Q57: 18999.68 | R57: 16475.76 | S57: 12776.96
A58: 70 | C58: 28775.04 | D58: 25221.84 | E58: 20605.76 | F58: 17867.36 | G58: 13857.76 | I58: 51384 | J58: 45039 | K58: 36796 | L58: 31906 | M58: 24746 | O58: 28775.04 | P58: 25221.84 | Q58: 20605.76 | R58: 17867.36 | S58: 13857.76
A59: 71 | C59: 31108.56 | D59: 27266.4 | E59: 22289.68 | F59: 19328.4 | G59: 14988.96 | I59: 55551 | J59: 48690 | K59: 39803 | L59: 34515 | M59: 26766 | O59: 31108.56 | P59: 27266.4 | Q59: 22289.68 | R59: 19328.4 | S59: 14988.96
A60: 72 | C60: 33542.88 | D60: 29401.68 | E60: 24052.56 | F60: 20855.52 | G60: 16174.48 | I60: 59898 | J60: 52503 | K60: 42951 | L60: 37242 | M60: 28883 | O60: 33542.88 | P60: 29401.68 | Q60: 24052.56 | R60: 20855.52 | S60: 16174.48
A61: 73 | C61: 36085.28 | D61: 31629.92 | E61: 25888.8 | F61: 22448.16 | G61: 17409.84 | I61: 64438 | J61: 56482 | K61: 46230 | L61: 40086 | M61: 31089 | O61: 36085.28 | P61: 31629.92 | Q61: 25888.8 | R61: 22448.16 | S61: 17409.84
A62: 74 | C62: 38731.84 | D62: 33949.44 | E62: 27805.12 | F62: 24109.68 | G62: 18697.84 | I62: 69164 | J62: 60624 | K62: 49652 | L62: 43053 | M62: 33389 | O62: 38731.84 | P62: 33949.44 | Q62: 27805.12 | R62: 24109.68 | S62: 18697.84
A63: 75 | C63: 41482 | D63: 36360.24 | E63: 29798.16 | F63: 25837.84 | G63: 20038.48 | I63: 74075 | J63: 64929 | K63: 53211 | L63: 46139 | M63: 35783 | O63: 41482 | P63: 36360.24 | Q63: 29798.16 | R63: 25837.84 | S63: 20038.48
A64: 76 | C64: 41482 | D64: 36360.24 | E64: 29798.16 | F64: 25837.84 | G64: 20038.48 | I64: 74075 | J64: 64929 | K64: 53211 | L64: 46139 | M64: 35783 | O64: 41482 | P64: 36360.24 | Q64: 29798.16 | R64: 25837.84 | S64: 20038.48
A65: 77 | C65: 41482 | D65: 36360.24 | E65: 29798.16 | F65: 25837.84 | G65: 20038.48 | I65: 74075 | J65: 64929 | K65: 53211 | L65: 46139 | M65: 35783 | O65: 41482 | P65: 36360.24 | Q65: 29798.16 | R65: 25837.84 | S65: 20038.48
A66: 78 | C66: 41482 | D66: 36360.24 | E66: 29798.16 | F66: 25837.84 | G66: 20038.48 | I66: 74075 | J66: 64929 | K66: 53211 | L66: 46139 | M66: 35783 | O66: 41482 | P66: 36360.24 | Q66: 29798.16 | R66: 25837.84 | S66: 20038.48
A67: 79 | C67: 41482 | D67: 36360.24 | E67: 29798.16 | F67: 25837.84 | G67: 20038.48 | I67: 74075 | J67: 64929 | K67: 53211 | L67: 46139 | M67: 35783 | O67: 41482 | P67: 36360.24 | Q67: 29798.16 | R67: 25837.84 | S67: 20038.48
A68: 80 | C68: 41482 | D68: 36360.24 | E68: 29798.16 | F68: 25837.84 | G68: 20038.48 | I68: 74075 | J68: 64929 | K68: 53211 | L68: 46139 | M68: 35783 | O68: 41482 | P68: 36360.24 | Q68: 29798.16 | R68: 25837.84 | S68: 20038.48
A69: 81 | C69: 41482 | D69: 36360.24 | E69: 29798.16 | F69: 25837.84 | G69: 20038.48 | I69: 74075 | J69: 64929 | K69: 53211 | L69: 46139 | M69: 35783 | O69: 41482 | P69: 36360.24 | Q69: 29798.16 | R69: 25837.84 | S69: 20038.48
A70: 82 | C70: 41482 | D70: 36360.24 | E70: 29798.16 | F70: 25837.84 | G70: 20038.48 | I70: 74075 | J70: 64929 | K70: 53211 | L70: 46139 | M70: 35783 | O70: 41482 | P70: 36360.24 | Q70: 29798.16 | R70: 25837.84 | S70: 20038.48
A71: 83 | C71: =O71 -> 41482 | D71: =P71 -> 36360.24 | E71: =Q71 -> 29798.16 | F71: =R71 -> 25837.84 | G71: =S71 -> 20038.48 | I71: 74075 | J71: 64929 | K71: 53211 | L71: 46139 | M71: 35783 | O71: =I71*0.56 -> 41482 | P71: =J71*0.56 -> 36360.24 | Q71: =K71*0.56 -> 29798.16 | R71: =L71*0.56 -> 25837.84 | S71: =M71*0.56 -> 20038.48
A72: 84 | B72: o más | C72: 41482 | D72: 36360.24 | E72: 29798.16 | F72: 25837.84 | G72: 20038.48 | I72: 74075 | J72: 64929 | K72: 53211 | L72: 46139 | M72: 35783 | O72: 41482 | P72: 36360.24 | Q72: 29798.16 | R72: 25837.84 | S72: 20038.48
A73: 1 | B73: Hijo | C73: 2125.76 | D73: 1863.68 | E73: 1578.64 | F73: 1369.76 | G73: 1062.88 | I73: 3796 | J73: 3328 | K73: 2819 | L73: 2446 | M73: 1898 | O73: 2125.76 | P73: 1863.68 | Q73: 1578.64 | R73: 1369.76 | S73: 1062.88
A74: 2 | B74: Hijos | C74: 3614.8 | D74: 3168.48 | E74: 2683.52 | F74: 2326.8 | G74: 1805.44 | I74: 6455 | J74: 5658 | K74: 4792 | L74: 4155 | M74: 3224 | O74: 3614.8 | P74: 3168.48 | Q74: 2683.52 | R74: 2326.8 | S74: 1805.44
A75: 3 | B75: Hijos o más | C75: 5101.6 | D75: 4472.16 | E75: 3788.4 | F75: 3284.96 | G75: 2546.88 | I75: 9110 | J75: 7986 | K75: 6765 | L75: 5866 | M75: 4548 | O75: 5101.6 | P75: 4472.16 | Q75: 3788.4 | R75: 3284.96 | S75: 2546.88
A77: BUPA GLOBAL ELITE - MENSUALES
A78: EDAD
C79: 250 | D79: 2000 | E79: 3500 | F79: 5000 | G79: 10000
A80: 18 | C80: =C6*$K$2 -> 469.6682667 | D80: 411.5477333 | E80: 346.1621333 | F80: 300.2197333 | G80: 232.848
A81: 19 | C81: 469.6682667 | D81: 411.5477333 | E81: 346.1621333 | F81: 300.2197333 | G81: 232.848
A82: 20 | C82: 469.6682667 | D82: 411.5477333 | E82: 346.1621333 | F82: 300.2197333 | G82: 232.848
A83: 21 | C83: 469.6682667 | D83: 411.5477333 | E83: 346.1621333 | F83: 300.2197333 | G83: 232.848
A84: 22 | C84: 469.6682667 | D84: 411.5477333 | E84: 346.1621333 | F84: 300.2197333 | G84: 232.848
A85: 23 | C85: 469.6682667 | D85: 411.5477333 | E85: 346.1621333 | F85: 300.2197333 | G85: 232.848
A86: 24 | C86: 469.6682667 | D86: 411.5477333 | E86: 346.1621333 | F86: 300.2197333 | G86: 232.848
A87: 25 | C87: 501.9168 | D87: 439.9285333 | E87: 367.8005333 | F87: 318.9312 | G87: 247.3781333
A88: 26 | C88: 501.9168 | D88: 439.9285333 | E88: 367.8005333 | F88: 318.9312 | G88: 247.3781333
A89: 27 | C89: 501.9168 | D89: 439.9285333 | E89: 367.8005333 | F89: 318.9312 | G89: 247.3781333
A90: 28 | C90: =C16*$K$2 -> 501.9168 | D90: 439.9285333 | E90: 367.8005333 | F90: 318.9312 | G90: 247.3781333
A91: 29 | C91: 501.9168 | D91: 439.9285333 | E91: 367.8005333 | F91: 318.9312 | G91: 247.3781333
A92: 30 | C92: 558.3125333 | D92: 489.3728 | E92: 405.9552 | F92: 351.9637333 | G92: 273.0410667
A93: 31 | C93: 558.3125333 | D93: 489.3728 | E93: 405.9552 | F93: 351.9637333 | G93: 273.0410667
A94: 32 | C94: 558.3125333 | D94: 489.3728 | E94: 405.9552 | F94: 351.9637333 | G94: 273.0410667
A95: 33 | C95: 558.3125333 | D95: 489.3728 | E95: 405.9552 | F95: 351.9637333 | G95: 273.0410667
A96: 34 | C96: 558.3125333 | D96: 489.3728 | E96: 405.9552 | F96: 351.9637333 | G96: 273.0410667
A97: 35 | C97: 623.28 | D97: 546.2912 | E97: 450.6432 | F97: 390.6933333 | G97: 303.0421333
A98: 36 | C98: 623.28 | D98: 546.2912 | E98: 450.6432 | F98: 390.6933333 | G98: 303.0421333
A99: 37 | C99: 623.28 | D99: 546.2912 | E99: 450.6432 | F99: 390.6933333 | G99: 303.0421333
A100: 38 | C100: =C26*$K$2 -> 623.28 | D100: 546.2912 | E100: 450.6432 | F100: 390.6933333 | G100: 303.0421333
A101: 39 | C101: 623.28 | D101: 546.2912 | E101: 450.6432 | F101: 390.6933333 | G101: 303.0421333
A102: 40 | C102: 698.3349333 | D102: 611.9904 | E102: 502.5962667 | F102: 435.7994667 | G102: 338.0085333
A103: 41 | C103: 698.3349333 | D103: 611.9904 | E103: 502.5962667 | F103: 435.7994667 | G103: 338.0085333
A104: 42 | C104: 698.3349333 | D104: 611.9904 | E104: 502.5962667 | F104: 435.7994667 | G104: 338.0085333
A105: 43 | C105: 698.3349333 | D105: 611.9904 | E105: 502.5962667 | F105: 435.7994667 | G105: 338.0085333
A106: 44 | C106: 698.3349333 | D106: 611.9904 | E106: 502.5962667 | F106: 435.7994667 | G106: 338.0085333
A107: 45 | C107: 781.3866667 | D107: 685.0069333 | E107: 560.8736 | F107: 486.3413333 | G107: 377.2085333
A108: 46 | C108: 781.3866667 | D108: 685.0069333 | E108: 560.8736 | F108: 486.3413333 | G108: 377.2085333
A109: 47 | C109: 781.3866667 | D109: 685.0069333 | E109: 560.8736 | F109: 486.3413333 | G109: 377.2085333
A110: 48 | C110: =C36*$K$2 -> 781.3866667 | D110: 685.0069333 | E110: 560.8736 | F110: 486.3413333 | G110: 377.2085333
A111: 49 | C111: 781.3866667 | D111: 685.0069333 | E111: 560.8736 | F111: 486.3413333 | G111: 377.2085333
A112: 50 | C112: 875.2576 | D112: 767.2224 | E112: 626.5728 | F112: 543.312 | G112: 421.4261333
A113: 51 | C113: 875.2576 | D113: 767.2224 | E113: 626.5728 | F113: 543.312 | G113: 421.4261333
A114: 52 | C114: 875.2576 | D114: 767.2224 | E114: 626.5728 | F114: 543.312 | G114: 421.4261333
A115: 53 | C115: 875.2576 | D115: 767.2224 | E115: 626.5728 | F115: 543.312 | G115: 421.4261333
A116: 54 | C116: 875.2576 | D116: 767.2224 | E116: 626.5728 | F116: 543.312 | G116: 421.4261333
A117: 55 | C117: 978.5888 | D117: 857.8005333 | E117: 699.5893333 | F117: 606.6592 | G117: 470.5568
A118: 56 | C118: 978.5888 | D118: 857.8005333 | E118: 699.5893333 | F118: 606.6592 | G118: 470.5568
A119: 57 | C119: 978.5888 | D119: 857.8005333 | E119: 699.5893333 | F119: 606.6592 | G119: 470.5568
A120: 58 | C120: =C46*$K$2 -> 978.5888 | D120: 857.8005333 | E120: 699.5893333 | F120: 606.6592 | G120: 470.5568
A121: 59 | C121: 978.5888 | D121: 857.8005333 | E121: 699.5893333 | F121: 606.6592 | G121: 470.5568
A122: 60 | C122: 1047.371733 | D122: 918.0117333 | E122: 748.1450667 | F122: 648.8384 | G122: 503.2234667
A123: 61 | C123: 1167.166933 | D123: 1023.067733 | E123: 833.2352 | F123: 722.5344 | G123: 560.4032
A124: 62 | C124: 1296.736 | D124: 1136.695467 | E124: 925.5381333 | F124: 802.5024 | G124: 622.3914667
A125: 63 | C125: 1436.183467 | D125: 1258.894933 | E125: 1025.0016 | F125: 888.7424 | G125: 689.3973333
A126: 64 | C126: 1585.457067 | D126: 1389.5616 | E126: 1131.6256 | F126: 981.2544 | G126: 761.0549333
A127: 65 | C127: 1744.347733 | D127: 1528.904533 | E127: 1245.514667 | F127: 1079.986133 | G127: 837.6256
A128: 66 | C128: 1913.064533 | D128: 1676.766933 | E128: 1366.773333 | F128: 1185.0944 | G128: 919.0570667
A129: 67 | C129: 2091.607467 | D129: 1833.253333 | E129: 1495.088 | F129: 1296.370133 | G129: 1005.4016
A130: 68 | C130: =C56*$K$2 -> 2279.819733 | D130: 1998.2592 | E130: 1630.5632 | F130: 1413.8656 | G130: 1096.5024
A131: 69 | C131: 2477.962667 | D131: 2171.941333 | E131: 1773.303467 | F131: 1537.7376 | G131: 1192.516267
A132: 70 | C132: 2685.6704 | D132: 2354.0384 | E132: 1923.204267 | F132: 1667.620267 | G132: 1293.390933
A133: 71 | C133: 2903.4656 | D133: 2544.864 | E133: 2080.370133 | F133: 1803.984 | G133: 1398.9696
A134: 72 | C134: 3130.6688 | D134: 2744.1568 | E134: 2244.9056 | F134: 1946.5152 | G134: 1509.618133
A135: 73 | C135: 3367.959467 | D135: 2952.125867 | E135: 2416.288 | F135: 2095.1616 | G135: 1624.9184
A136: 74 | C136: 3614.971733 | D136: 3168.6144 | E136: 2595.144533 | F136: 2250.2368 | G136: 1745.131733
A137: 75 | C137: 3871.653333 | D137: 3393.6224 | E137: 2781.1616 | F137: 2411.531733 | G137: 1870.258133
A138: 76 | C138: 3871.653333 | D138: 3393.6224 | E138: 2781.1616 | F138: 2411.531733 | G138: 1870.258133
A139: 77 | C139: 3871.653333 | D139: 3393.6224 | E139: 2781.1616 | F139: 2411.531733 | G139: 1870.258133
A140: 78 | C140: =C66*$K$2 -> 3871.653333 | D140: 3393.6224 | E140: 2781.1616 | F140: 2411.531733 | G140: 1870.258133
A141: 79 | C141: 3871.653333 | D141: 3393.6224 | E141: 2781.1616 | F141: 2411.531733 | G141: 1870.258133
A142: 80 | C142: 3871.653333 | D142: 3393.6224 | E142: 2781.1616 | F142: 2411.531733 | G142: 1870.258133
A143: 81 | C143: 3871.653333 | D143: 3393.6224 | E143: 2781.1616 | F143: 2411.531733 | G143: 1870.258133
A144: 82 | C144: 3871.653333 | D144: 3393.6224 | E144: 2781.1616 | F144: 2411.531733 | G144: 1870.258133
A145: 83 | C145: 3871.653333 | D145: 3393.6224 | E145: 2781.1616 | F145: 2411.531733 | G145: 1870.258133
A146: 84 | B146: o más | C146: 3871.653333 | D146: 3393.6224 | E146: 2781.1616 | F146: 2411.531733 | G146: 1870.258133
A147: 1 | B147: Hijo | C147: 198.4042667 | D147: 173.9434667 | E147: 147.3397333 | F147: 127.8442667 | G147: 99.20213333
A148: 2 | B148: Hijos | C148: 337.3813333 | D148: 295.7248 | E148: 250.4618667 | F148: 217.168 | G148: 168.5077333
A149: 3 | B149: Hijos o más | C149: 476.1493333 | D149: 417.4016 | E149: 353.584 | F149: 306.5962667 | G149: 237.7088
A151: BUPA GLOBAL PREMIER
A152: TARIFAS ANUALES
A153: EDAD
C154: 250 | D154: 2000 | E154: 5000 | F154: 10000 | I154: Tarifas originales
A155: 18 | C155: =I155*$K$5 -> 4699.2 | D155: =J155*$K$5 -> 4264 | E155: =K155*$K$5 -> 3235.2 | F155: =L155*$K$5 -> 2406.4 | I155: 5874 | J155: 5330 | K155: 4044 | L155: 3008
A156: 19 | C156: 4699.2 | D156: 4264 | E156: 3235.2 | F156: 2406.4 | I156: 5874 | J156: 5330 | K156: 4044 | L156: 3008
A157: 20 | C157: 4699.2 | D157: 4264 | E157: 3235.2 | F157: 2406.4 | I157: 5874 | J157: 5330 | K157: 4044 | L157: 3008
A158: 21 | C158: 4699.2 | D158: 4264 | E158: 3235.2 | F158: 2406.4 | I158: 5874 | J158: 5330 | K158: 4044 | L158: 3008
A159: 22 | C159: 4699.2 | D159: 4264 | E159: 3235.2 | F159: 2406.4 | I159: 5874 | J159: 5330 | K159: 4044 | L159: 3008
A160: 23 | C160: 4699.2 | D160: 4264 | E160: 3235.2 | F160: 2406.4 | I160: 5874 | J160: 5330 | K160: 4044 | L160: 3008
A161: 24 | C161: 4699.2 | D161: 4264 | E161: 3235.2 | F161: 2406.4 | I161: 5874 | J161: 5330 | K161: 4044 | L161: 3008
A162: 25 | C162: 5020.8 | D162: 4556.8 | E162: 3421.6 | F162: 2546.4 | I162: 6276 | J162: 5696 | K162: 4277 | L162: 3183
A163: 26 | C163: 5020.8 | D163: 4556.8 | E163: 3421.6 | F163: 2546.4 | I163: 6276 | J163: 5696 | K163: 4277 | L163: 3183
A164: 27 | C164: 5020.8 | D164: 4556.8 | E164: 3421.6 | F164: 2546.4 | I164: 6276 | J164: 5696 | K164: 4277 | L164: 3183
A165: 28 | C165: 5020.8 | D165: 4556.8 | E165: 3421.6 | F165: 2546.4 | I165: 6276 | J165: 5696 | K165: 4277 | L165: 3183
A166: 29 | C166: 5020.8 | D166: 4556.8 | E166: 3421.6 | F166: 2546.4 | I166: 6276 | J166: 5696 | K166: 4277 | L166: 3183
A167: 30 | C167: 5586.4 | D167: 5068 | E167: 3756.8 | F167: 2795.2 | I167: 6983 | J167: 6335 | K167: 4696 | L167: 3494
A168: 31 | C168: 5586.4 | D168: 5068 | E168: 3756.8 | F168: 2795.2 | I168: 6983 | J168: 6335 | K168: 4696 | L168: 3494
A169: 32 | C169: 5586.4 | D169: 5068 | E169: 3756.8 | F169: 2795.2 | I169: 6983 | J169: 6335 | K169: 4696 | L169: 3494
A170: 33 | C170: 5586.4 | D170: 5068 | E170: 3756.8 | F170: 2795.2 | I170: 6983 | J170: 6335 | K170: 4696 | L170: 3494
A171: 34 | C171: 5586.4 | D171: 5068 | E171: 3756.8 | F171: 2795.2 | I171: 6983 | J171: 6335 | K171: 4696 | L171: 3494
A172: 35 | C172: 6234.4 | D172: 5659.2 | E172: 4152 | F172: 3088 | I172: 7793 | J172: 7074 | K172: 5190 | L172: 3860
A173: 36 | C173: 6234.4 | D173: 5659.2 | E173: 4152 | F173: 3088 | I173: 7793 | J173: 7074 | K173: 5190 | L173: 3860
A174: 37 | C174: 6234.4 | D174: 5659.2 | E174: 4152 | F174: 3088 | I174: 7793 | J174: 7074 | K174: 5190 | L174: 3860
A175: 38 | C175: 6234.4 | D175: 5659.2 | E175: 4152 | F175: 3088 | I175: 7793 | J175: 7074 | K175: 5190 | L175: 3860
A176: 39 | C176: 6234.4 | D176: 5659.2 | E176: 4152 | F176: 3088 | I176: 7793 | J176: 7074 | K176: 5190 | L176: 3860
A177: 40 | C177: 6986.4 | D177: 6340.8 | E177: 4616 | F177: 3434.4 | I177: 8733 | J177: 7926 | K177: 5770 | L177: 4293
A178: 41 | C178: 6986.4 | D178: 6340.8 | E178: 4616 | F178: 3434.4 | I178: 8733 | J178: 7926 | K178: 5770 | L178: 4293
A179: 42 | C179: 6986.4 | D179: 6340.8 | E179: 4616 | F179: 3434.4 | I179: 8733 | J179: 7926 | K179: 5770 | L179: 4293
A180: 43 | C180: 6986.4 | D180: 6340.8 | E180: 4616 | F180: 3434.4 | I180: 8733 | J180: 7926 | K180: 5770 | L180: 4293
A181: 44 | C181: 6986.4 | D181: 6340.8 | E181: 4616 | F181: 3434.4 | I181: 8733 | J181: 7926 | K181: 5770 | L181: 4293
A182: 45 | C182: 7819.2 | D182: 7097.6 | E182: 5138.4 | F182: 3822.4 | I182: 9774 | J182: 8872 | K182: 6423 | L182: 4778
A183: 46 | C183: 7819.2 | D183: 7097.6 | E183: 5138.4 | F183: 3822.4 | I183: 9774 | J183: 8872 | K183: 6423 | L183: 4778
A184: 47 | C184: 7819.2 | D184: 7097.6 | E184: 5138.4 | F184: 3822.4 | I184: 9774 | J184: 8872 | K184: 6423 | L184: 4778
A185: 48 | C185: 7819.2 | D185: 7097.6 | E185: 5138.4 | F185: 3822.4 | I185: 9774 | J185: 8872 | K185: 6423 | L185: 4778
A186: 49 | C186: 7819.2 | D186: 7097.6 | E186: 5138.4 | F186: 3822.4 | I186: 9774 | J186: 8872 | K186: 6423 | L186: 4778
A187: 50 | C187: =I187*$K$5 -> 8757.6 | D187: =J187*$K$5 -> 7947.2 | E187: =K187*$K$5 -> 5731.2 | F187: =L187*$K$5 -> 4264 | I187: 10947 | J187: 9934 | K187: 7164 | L187: 5330
A188: 51 | C188: 8757.6 | D188: 7947.2 | E188: 5731.2 | F188: 4264 | I188: 10947 | J188: 9934 | K188: 7164 | L188: 5330
A189: 52 | C189: 8757.6 | D189: 7947.2 | E189: 5731.2 | F189: 4264 | I189: 10947 | J189: 9934 | K189: 7164 | L189: 5330
A190: 53 | C190: 8757.6 | D190: 7947.2 | E190: 5731.2 | F190: 4264 | I190: 10947 | J190: 9934 | K190: 7164 | L190: 5330
A191: 54 | C191: 8757.6 | D191: 7947.2 | E191: 5731.2 | F191: 4264 | I191: 10947 | J191: 9934 | K191: 7164 | L191: 5330
A192: 55 | C192: 9791.2 | D192: 8886.4 | E192: 6391.2 | F192: 4755.2 | I192: 12239 | J192: 11108 | K192: 7989 | L192: 5944
A193: 56 | C193: 9791.2 | D193: 8886.4 | E193: 6391.2 | F193: 4755.2 | I193: 12239 | J193: 11108 | K193: 7989 | L193: 5944
A194: 57 | C194: 9791.2 | D194: 8886.4 | E194: 6391.2 | F194: 4755.2 | I194: 12239 | J194: 11108 | K194: 7989 | L194: 5944
A195: 58 | C195: 9791.2 | D195: 8886.4 | E195: 6391.2 | F195: 4755.2 | I195: 12239 | J195: 11108 | K195: 7989 | L195: 5944
A196: 59 | C196: 9791.2 | D196: 8886.4 | E196: 6391.2 | F196: 4755.2 | I196: 12239 | J196: 11108 | K196: 7989 | L196: 5944
A197: 60 | C197: 10480 | D197: 9508.8 | E197: 6832.8 | F197: 5082.4 | I197: 13100 | J197: 11886 | K197: 8541 | L197: 6353
A198: 61 | C198: 11678.4 | D198: 10597.6 | E198: 7603.2 | F198: 5656.8 | I198: 14598 | J198: 13247 | K198: 9504 | L198: 7071
A199: 62 | C199: 12972 | D199: 11774.4 | E199: 8443.2 | F199: 6281.6 | I199: 16215 | J199: 14718 | K199: 10554 | L199: 7852
A200: 63 | C200: 14368 | D200: 13039.2 | E200: 9352.8 | F200: 6956.8 | I200: 17960 | J200: 16299 | K200: 11691 | L200: 8696
A201: 64 | C201: 15860.8 | D201: 14392.8 | E201: 10328 | F201: 7683.2 | I201: 19826 | J201: 17991 | K201: 12910 | L201: 9604
A202: 65 | C202: 17450.4 | D202: 15834.4 | E202: 11369.6 | F202: 8457.6 | I202: 21813 | J202: 19793 | K202: 14212 | L202: 10572
A203: 66 | C203: 19140 | D203: 17368 | E203: 12480 | F203: 9284.8 | I203: 23925 | J203: 21710 | K203: 15600 | L203: 11606
... 1275 more rows
